Cogmind - Beta 16 --- EXPLORER MODE // 2026.01.05 @ 19:53:07 // Winter2019/RPGLIKE Player: XorOwl Result: Defending 0bPrime! Performance ------------- Evolutions (8) 4000 Regions Visited (15) 3000 Robots Destroyed (643) 3215 Value Destroyed (42889) 42889 Prototype IDs (157) 3140 Alien Tech Used (3) 600 Bonus (59228) 59228 TOTAL SCORE: 116072 Bonus ------- High Alert Combat Kills 20805 Follower Combat Kills 4323 Destroyed Unchained 1000 Registered with UFD 300 Met Optimus in HQ 500 Met Zhirov 300 Hacked Protovariant 500 Scanned by Researcher 500 Acquired SGEMP 2000 Destroyed Superfortress 15000 Met Optimus at Protoforge 1000 Executed Drillbomb Mission 10000 Win 3000 Cogmind --------- Core Integrity 4492/5200 Matter 2000/2000 Energy 3600/3600 System Corruption 0% Temperature Cool (0) Movement Flying (16) Location 0bPrime Parts ------- > --- POWER (1) -------- Improved Quantum Reactor > --- PROPULSION (4) --- Experimental Surge Thruster Experimental Surge Thruster Experimental Surge Thruster Experimental Surge Thruster > --- UTILITY (17) ----- Scrap Suit Plexus Tether Visual Processing Unit Improved Salvage Targeting Computer Advanced Melee Analysis Suite Experimental Melee Analysis Suite Experimental Core Analyzer Improved Armor Integrity Analyzer Improved Transmission Jammer DW-4LL's Blast Wall AEGIS Remote Shield Tech Extrapolator > --- WEAPON (4) ------- Point Singularity Launcher Sigix Broadsword Experimental Jetlance > --- INVENTORY (48) --- Protomatter-736 Protomatter-69 Cooled Impulse Thruster Cooled Impulse Thruster Cooled Impulse Thruster Experimental Surge Thruster 0bPrime Scrap Suit Deep Structural Scanner Advanced Sensor Array Improved Target Analyzer Experimental Core Analyzer Experimental Core Analyzer Recoil Stabilizer Particle Accelerator Experimental ECM Suite Experimental Cloaking Device ID Mask Improved Medium Armor Plating Experimental Thermal Shield Dimensional Node Initializer Dimensional Node Initializer Dimensional Node Initializer Transdimensional Reconstructor High-powered Transdimensional Reconstructor High-powered Transdimensional Reconstructor High-powered Transdimensional Reconstructor Terrabomb Terrabomb Improved Heavy Laser Precision Phase Gun Phase Cannon Nova Cannon Micro-nuke Launcher Improved Datajack Improved Remote Datajack CPS Tube (1) CPS Tube (2) Stasis Beam Segregator SGEMP Prototype Sigix Corpse Sigix Corpse Peak State ------------ > --- POWER ------------ Light Quantum Reactor > --- PROPULSION ------- Experimental Surge Thruster Experimental Surge Thruster Experimental Surge Thruster Experimental Surge Thruster > --- UTILITY ---------- Scrap Suit Plexus Tether Visual Processing Unit Experimental Signal Interpreter Improved Salvage Targeting Computer Experimental Melee Analysis Suite Experimental Core Analyzer Experimental Core Analyzer Improved Armor Integrity Analyzer DW-4LL's Blast Wall AEGIS Remote Shield Concept Antimissile System Tech Extrapolator > --- WEAPON ----------- Segregator Sigix Broadsword Experimental Jetlance > --- INVENTORY -------- Protomatter Protomatter Protomatter Protomatter Protomatter Protomatter Protomatter Cooled Impulse Thruster Cooled Impulse Thruster Cooled Impulse Thruster Experimental Surge Thruster Deep Structural Scanner Advanced Sensor Array Advanced Melee Analysis Suite Experimental Core Analyzer Experimental Core Analyzer Recoil Stabilizer Particle Accelerator Improved Transmission Jammer Experimental ECM Suite Experimental Cloaking Device ID Mask Improved Medium Armor Plating Experimental Thermal Shield Dimensional Node Initializer Dimensional Node Initializer Dimensional Node Initializer Transdimensional Reconstructor High-powered Transdimensional Reconstructor High-powered Transdimensional Reconstructor High-powered Transdimensional Reconstructor Terrabomb Terrabomb Improved Heavy Laser Precision Phase Gun Phase Cannon Nova Cannon Micro-nuke Launcher Point Singularity Launcher Improved Datajack Improved Remote Datajack CPS Tube Stasis Beam SGEMP Prototype Sigix Corpse Sigix Corpse [Rating: 257] Favorites ----------- Power Improved Deuterium Engine Engine Improved Deuterium Engine Reactor Light Quantum Reactor Propulsion Advanced Surge Thruster Leg Aluminum Leg Flight Unit Advanced Surge Thruster Utility Visual Processing Unit Device Scrap Suit Processor Visual Processing Unit Protection Improved Propulsion Shielding Weapon Overtuned Pulse Rifle Energy Gun Overtuned Pulse Rifle Energy Cannon Phase Cannon Ballistic Gun Light Assault Rifle Launcher Micro-nuke Launcher Special Weapon Improved Remote Datajack Slashing Weapon Sigix Broadsword Piercing Weapon Experimental Jetlance Special Melee Weapon Improved Datajack Build | -11 -10 -10 -10 -7 -5 -5 -5 -5 -4 -4 -3 -3 -2 -2 -2 ------- Run | Yrd Mat Min Sub Scr Fac Upp Upp Zhi Pro Fac Res Tes Res Qua Frg Slots Evolved 22 | 22 . . . . . . . . . . . . . . . Power . | . . . . . . . . . . . . . . . . Propulsion 3 | 3 . . . . . . . . . . . . . . . Utility 16 | 16 . . . . . . . . . . . . . . . Weapon 3 | 3 . . . . . . . . . . . . . . . Parts Attached 114 | 9 13 6 1 12 26 . . 1 . 5 2 8 3 . 28 Power 4 | 1 . . . 1 . . . . . . . . . . 2 Engine 2 | 1 . . . 1 . . . . . . . . . . . Core . | . . . . . . . . . . . . . . . . Reactor 2 | . . . . . . . . . . . . . . . 2 Propulsion 26 | 2 6 . . 1 8 . . . . . . 4 . . 5 Treads . | . . . . . . . . . . . . . . . . Leg 4 | 2 2 . . . . . . . . . . . . . . Wheel . | . . . . . . . . . . . . . . . . Hover . | . . . . . . . . . . . . . . . . Flight 22 | . 4 . . 1 8 . . . . . . 4 . . 5 Utility 60 | 3 5 6 . 7 14 . . 1 . 1 2 4 1 . 16 Device 29 | . 2 4 . 5 7 . . 1 . 1 1 4 1 . 3 Storage . | . . . . . . . . . . . . . . . . Processor 20 | 1 2 . . 1 5 . . . . . 1 . . . 10 Hackware . | . . . . . . . . . . . . . . . . Protection 11 | 2 1 2 . 1 2 . . . . . . . . . 3 Artifact . | . . . . . . . . . . . . . . . . Weapon 24 | 3 2 . 1 3 4 . . . . 4 . . 2 . 5 Energy Gun 7 | 1 2 . . 3 . . . . . . . . . . 1 Energy Cannon 3 | . . . . . 2 . . . . . . . 1 . . Ballistic Gun 2 | 2 . . . . . . . . . . . . . . . Ballistic Cannon . | . . . . . . . . . . . . . . . . Launcher 4 | . . . 1 . 1 . . . . 1 . . . . 1 Special Weapon 2 | . . . . . 1 . . . . 1 . . . . . Impact Weapon . | . . . . . . . . . . . . . . . . Slashing Weapon 3 | . . . . . . . . . . 1 . . . . 2 Piercing Weapon 2 | . . . . . . . . . . 1 . . . . 1 Special Melee Weapon 1 | . . . . . . . . . . . . . 1 . . Unidentified Prototypes 16 | . . 1 . . 7 . . 3 . . . 2 1 . 2 Parts Lost 4 | . . . . . 1 . . . . . . . . . 3 Power 1 | . . . . . 1 . . . . . . . . . . Propulsion . | . . . . . . . . . . . . . . . . Utility 3 | . . . . . . . . . . . . . . . 3 Weapon . | . . . . . . . . . . . . . . . . Highest Loss Streak 1 | . . . . . 1 . . . . . . . . . 1 To Critical Strikes . | . . . . . . . . . . . . . . . . Average Backups 20 | 2 5 14 15 16 17 19 19 19 19 19 18 17 17 21 33 Power . | . . . . . . . . . . . . . . . . Propulsion 1 | . 3 7 7 6 . . . . . . . . . . 3 Utility 11 | 1 1 3 4 4 11 14 14 14 14 13 12 10 10 10 11 Weapon 3 | . . 4 4 4 2 2 2 2 2 2 3 2 2 2 5 Tool/Special . | . . . . . . . . . . . . . . . . Unused Backups 49 | . . . . 3 12 . . . 1 7 . 3 1 3 19 Power . | . . . . . . . . . . . . . . . . Propulsion 5 | . . . . 2 1 . . . . . . . . . 2 Utility 23 | . . . . . 8 . . . 1 6 . 2 . 1 5 Weapon 8 | . . . . 1 2 . . . . 1 . 1 1 1 1 Tool/Special 13 | . . . . . 1 . . . . . . . . 1 11 Average Slot Usage (%) 89 | . 45 70 84 96 94 92 92 91 92 92 92 91 92 92 83 Flight 14 | . 7 15 15 15 15 15 15 15 15 15 15 15 15 15 14 Device 26 | . . 10 19 26 28 30 30 29 30 30 30 29 30 30 20 Processor 22 | . 4 11 11 13 21 23 23 23 23 23 23 23 23 23 28 Protection 7 | . 7 13 19 20 9 7 7 7 7 7 7 6 6 7 3 Energy Gun 6 | . 5 11 11 14 8 7 7 7 7 7 7 7 5 3 1 Energy Cannon 5 | . . . . . 5 7 7 7 6 3 5 7 7 10 4 Peak Build Rating 257 | 9 26 42 43 73 136 133 133 140 133 139 146 167 170 187 257 Average Rating 148 | 5 14 30 42 63 127 133 133 132 133 136 144 161 166 180 226 On Entrance 103 | . 9 26 41 43 73 133 133 133 133 133 139 146 165 165 186 Avg Prop Armor Cover (%) 1 | . 1 1 1 . . . . . . . . . . . . Naked Turns . | . . . . . . . . . . . . . . . . Heaviest Build 130 | 12 22 31 34 54 61 49 49 49 49 51 49 62 70 70 130 Greatest Support 230 | 120 140 112 116 117 120 120 120 120 120 120 120 128 128 128 230 Greatest Overweight (x) . | . . . . . . . . . . . . . . . . Average Overweight (x) . | . . . . . . . . . . . . . . . . Largest Inventory Capacity 48 | 23 23 23 23 24 24 24 24 24 24 24 24 24 24 48 48 Average Capacity 29 | 23 23 23 23 23 24 24 24 24 24 24 24 24 24 44 48 Most Carried 48 | 9 17 23 23 24 24 24 24 24 24 24 24 24 24 36 48 Average Carried 27 | 2 5 19 22 22 23 24 24 24 23 23 23 23 24 31 42 Final Capacity 48 | 23 23 23 23 24 24 24 24 24 24 24 24 24 24 48 48 Final Carried 44 | 1 16 21 22 24 24 24 24 24 24 23 24 24 24 36 44 Scrap Suit Usage (%) 79 | . . . . 29 57 100 100 100 100 100 100 100 100 100 100 Parts Cannibalized 1 | . . . . . . . . . . 1 . . . . . Class Distribution -------------------- 78% | Wizard-Scout 7% | Commander-Scout 6% | Wizard-Sprinter 3% | Commander-Ninja Dominant Class ---------------- Wizard-Scout | -10/Materials Wizard-Scout | -10/Mines Wizard-Scout | -10/Subcaves Wizard-Scout | -7/Scraptown Wizard-Scout | -5/Factory Wizard-Scout | -5/Upper Caves Wizard-Scout | -5/Upper Caves Wizard-Scout | -5/Zhirov Wizard-Scout | -4/Proximity Caves Wizard-Scout | -4/Factory Commander-Scout | -3/Research Commander-Scout | -3/Testing Wizard-Scout | -2/Research Wizard-Scout | -2/Quarantine Wizard-Scout | -2/Protoforge Resources | -11 -10 -10 -10 -7 -5 -5 -5 -5 -4 -4 -3 -3 -2 -2 -2 ----------- Run | Yrd Mat Min Sub Scr Fac Upp Upp Zhi Pro Fac Res Tes Res Qua Frg Matter Collected 4838 | 232 937 366 529 392 353 . . . 108 390 50 110 130 39 1202 Remotely . | . . . . . . . . . . . . . . . . Salvage Created 34874 | 87 426 134 127 757 3950 445 395 . 282 1645 1375 2632 2371 1209 19039 Parts 1415 | 1 36 12 11 40 131 17 13 . 17 67 58 99 88 41 784 Haulers Intercepted 14 | . 2 . . . 7 . . . . 2 1 1 1 . . Recyclers Shooed 1 | . . . . . . . . . . . . . 1 . . Parts Field Recycled . | . . . . . . . . . . . . . . . . Retrieved Matter . | . . . . . . . . . . . . . . . . Parts Self-Destructed . | . . . . . . . . . . . . . . . . Prevented . | . . . . . . . . . . . . . . . . Parts Restored . | . . . . . . . . . . . . . . . . Kills | -11 -10 -10 -10 -7 -5 -5 -5 -5 -4 -4 -3 -3 -2 -2 -2 ------- Run | Yrd Mat Min Sub Scr Fac Upp Upp Zhi Pro Fac Res Tes Res Qua Frg Combat Hostiles Destroyed 548 | . 12 4 4 14 62 8 8 . 7 27 17 35 32 12 306 Melee 193 | . . . . . . . . . . . . . . . 193 Guns 115 | . 12 4 4 14 25 5 2 . 2 9 4 6 2 5 21 Cannons 165 | . . . . . 29 2 5 . 4 3 12 24 15 5 66 AOE 38 | . . . . . . . . . . 12 . . 8 . 18 Classes Destroyed 38 | 1 4 2 2 7 9 1 . . . . . 3 2 . 7 Worker 8 | . . . . . 4 . . . . 1 1 . 1 . 1 Builder 6 | . . 1 . . 1 . . . . 1 3 . . . . Tunneler 2 | . . 2 . . . . . . . . . . . . . Hauler 14 | . 2 . . . 7 . . . . 2 1 1 1 . . Recycler 4 | 1 . 1 . . . . . . . 2 . . . . . Carrier 1 | . . . . . . 1 . . . . . . . . . Mechanic 6 | . . . . . 1 . . . . 1 . . . . 4 Operator 14 | . . . . . 4 . . . . 2 2 1 2 1 2 Drone 6 | . . . . . . . . . . . . . . . 6 Turret 2 | . . . 2 . . . . . . . . . . . . Watcher 32 | . 3 . . . 9 . . . . 2 5 2 1 3 7 Swarmer 74 | . 4 4 2 . 12 4 4 . 3 7 . . 11 . 23 Saboteur 10 | . . . . . . . . . . . . . . . 10 Grunt 112 | . 8 . . . 14 3 2 . 3 7 9 19 6 2 39 Brawler 18 | . . . . . 1 . 1 . . . 1 . . . 15 Duelist 18 | . . . . 1 2 . . . . . 2 . . . 13 Protector 14 | . . . . . . . . . . . . . . . 14 Researcher 5 | . . . . . . . . . . . . 5 . . . Sentry 24 | . . . . . 8 . 1 . 1 4 1 . 4 1 4 Demolisher 8 | . . . . . 1 . . . . 1 . . 1 . 5 Specialist 19 | . . . . . . . . . . . . 2 . 3 14 Hunter 51 | . . . . . 8 . . . . 4 2 9 1 2 25 Programmer 64 | . . . . . 15 . . . . 4 2 3 4 4 32 Heavy 2 | . . . . . . . . . . . . . 2 . . Q-Series 1 | . . . . . . . . . . . . . 1 . . Behemoth 5 | . . . . . 1 1 . . . . . . 2 . 1 Hotshot 9 | . . . . . . . . . . . . . . . 9 Decapitator 3 | . . . . . . . . . . . . . . . 3 Immortal 2 | . . . . . . . . . . . . . . . 2 Striker 53 | . . . . . . . . . . . . 2 . . 51 Executioner 38 | . . . . . . . . . . . . . . . 38 Alpha 7 2 | . . . . . . . . . . . . . . . 2 Subdweller 2 | . . . 2 . . . . . . . . . . . . Federalist 2 | . . . . 2 . . . . . . . . . . . Explorer 1 | . . . . 1 . . . . . . . . . . . Ranger 2 | . . . . 2 . . . . . . . . . . . Scrapper 6 | . . . . 6 . . . . . . . . . . . Scraphulk 1 | . . . . . . . . . . . . . . . 1 Tinkerer 1 | . . . . 1 . . . . . . . . . . . Thug 1 | . . . . 1 . . . . . . . . . . . Mutant 1 | . . . . 1 . . . . . . . . . . . Best Kill Streak 42 | 1 8 3 4 13 8 4 7 . 3 15 6 11 17 5 42 Combat Bots Only 42 | . 4 2 2 13 4 4 7 . 3 11 5 7 15 5 42 Max Kills in Single Turn 4 | 1 2 2 1 2 2 1 2 . 2 4 2 2 4 1 4 Gunslinging 1 | . 1 1 . 1 . . . . . . . . . . . Exploded 4 | . . . . . . . . . . 3 . . 4 . 3 Melee 2 | . . . . . . . . . . . . . . . 2 Uniques/NPCs Destroyed 1 | . . . . . . . . . . 1 . . . . . DW-4LL (-4/Factory) Combat | -11 -10 -10 -10 -7 -5 -5 -5 -5 -4 -4 -3 -3 -2 -2 -2 -------- Run | Yrd Mat Min Sub Scr Fac Upp Upp Zhi Pro Fac Res Tes Res Qua Frg Hostile Shots Fired 5610 | . 10 4 13 45 175 22 13 . 10 135 56 129 102 60 4836 Missed 2223 | . 5 2 3 17 72 15 2 . 5 56 26 42 41 24 1913 Intercepted 31 | . . . . . . . . . . . . . . . 31 Hits 3387 | . 5 2 10 28 103 7 11 . 5 79 30 87 61 36 2923 Melee 203 | . . . . . . . . . . . . . . . 203 Projectile 3184 | . 5 2 10 28 103 7 11 . 5 79 30 87 61 36 2720 AOE 45 | . . . . . 3 . . . . 2 1 . 7 . 32 Critical Strikes 237 | . . . . 2 4 . . . . 3 4 5 3 1 215 Actively Blocked 7 | . . . 1 . 1 . . . . 1 . 2 . . 2 Part Disruptions 11 | . 1 . . . 3 . . . . . . . 1 1 5 Actively Blocked 2 | . . . . . 1 . . . . . . . . . 1 Damage Taken 25547 | . 40 17 58 147 853 70 81 . 49 1053 282 522 419 301 21655 Core 15465 | . 32 12 23 80 461 49 53 . 22 666 183 304 298 224 13058 Absorbed by Shields 21212 | . 1 7 24 62 313 . . . . 49 36 322 396 284 19718 Redirected to Core 13456 | . 14 12 20 59 384 49 46 . 22 561 141 264 247 187 11450 Redirected to Shielding 753 | . . . 8 11 153 5 3 . 8 154 20 60 6 8 317 Ignored by Resistances 50605 | . 46 21 59 281 1323 93 114 . 64 1042 396 1007 902 536 44721 Regen/Repaired (Parts) 1289 | . . . . . . . . . . 10 . . . . 1279 Core Remaining (%) 95 | 100 . . . 100 . . . . 100 99 . 89 . . 86 Volleys Fired 783 | 2 22 9 15 29 144 18 10 . 12 65 52 79 64 42 220 Largest 4 | 3 4 4 4 4 4 4 4 . 4 4 4 4 4 4 4 Hottest 390 | 80 190 190 190 277 332 332 332 . 332 332 332 332 376 376 390 Shots Fired 2868 | 6 66 33 38 94 536 72 40 . 36 208 196 307 233 150 853 Gun 1336 | 6 66 33 32 94 320 36 20 . 16 114 94 152 109 36 208 Cannon 1478 | . . . . . 213 36 20 . 16 78 102 155 119 111 628 Launcher 46 | . . . 6 . 1 . . . . 15 . . 5 2 17 Special 8 | . . . . . 2 . . . 4 1 . . . 1 . Kinetic 60 | 4 42 9 5 . . . . . . . . . . . . Thermal 2754 | 2 24 24 27 94 533 72 40 . 32 192 196 307 228 147 836 Explosive 46 | . . . 6 . 1 . . . . 15 . . 5 2 17 Electromagnetic . | . . . . . . . . . . . . . . . . Robot Hit Streak 90 | 4 25 38 12 20 83 22 29 . 31 58 38 90 67 24 76 Robot Miss Streak 2 | . 1 1 1 2 2 1 1 . 1 1 2 1 2 1 2 Penetration Max 1 | . . . . . . . . . . . . . . . 1 Secondary Targets 10 | . 3 1 . 6 . . . . . . . . . . . Max Gunslinging Chain 1 | . 1 1 . 1 . . . . . . . . . . . Shots Hit Robots 2685 | 4 46 18 23 68 396 53 29 . 28 158 120 248 203 99 1192 Core Hits 1143 | 2 26 8 10 28 139 16 11 . 11 90 56 102 79 35 530 Critical Kills 15 | . . . . . 2 1 . . 1 . 1 . 3 1 6 Critical Parts Destroyed 1 | . 1 . . . . . . . . . . . . . . Critical Strikes 173 | . 1 . . 4 24 4 1 . 2 6 5 11 9 4 102 Burn 82 | . . . . 4 22 3 1 . 1 6 4 11 6 3 21 Meltdown 15 | . . . . . 2 1 . . 1 . 1 . 3 1 6 Destroy 1 | . 1 . . . . . . . . . . . . . . Sever 30 | . . . . . . . . . . . . . . . 30 Impale 45 | . . . . . . . . . . . . . . . 45 Melee Attacks 552 | . . . . . . . . . . 1 1 . 1 . 549 Thermal 48 | . . . . . . . . . . . . . . . 48 Impact . | . . . . . . . . . . . . . . . . Slashing 397 | . . . . . . . . . . . . . . . 397 Piercing 106 | . . . . . . . . . . 1 1 . . . 104 Sneak Attacks 6 | . . . . . . . . . . 1 . . 1 . 4 Combat Hostiles . | . . . . . . . . . . . . . . . . Follow-up Attacks 112 | . . . . . . . . . . . . . . . 112 Damage Inflicted 120770 | 42 572 252 358 1416 12364 1643 932 . 821 7451 3883 7345 7815 3224 72652 Guns 26806 | 42 572 252 358 1416 6884 793 407 . 368 2207 1514 3145 2421 807 5620 Cannons 43999 | . . . . . 5212 850 525 . 453 2205 2369 4200 3944 2417 21824 Explosions 11795 | . . . . . 268 . . . . 2948 . . 1450 . 7129 Melee 38170 | . . . . . . . . . . 91 . . . . 38079 Ramming . | . . . . . . . . . . . . . . . . Kinetic 328 | 16 259 25 28 . . . . . . . . . . . . Thermal 70726 | 26 313 227 330 1416 12345 1643 932 . 821 4412 3883 7345 6365 3224 27444 Explosive 11546 | . . . . . 19 . . . . 2948 . . 1450 . 7129 Electromagnetic . | . . . . . . . . . . . . . . . . Impact . | . . . . . . . . . . . . . . . . Slashing 34052 | . . . . . . . . . . . . . . . 34052 Piercing 4118 | . . . . . . . . . . 91 . . . . 4027 Highest Corruption 16 | . . . . . 1 . . . . 1 . . 4 2 16 Average Corruption 3 | . . . . . 1 . . . . 1 . . 2 1 6 Corruption Purged 27 | . . . . . 3 . . . . 1 . . 4 5 14 Corruption Blocked . | . . . . . . . . . . . . . . . . Effects 44 | . . . . . 12 . . . . . . . . 1 31 Message Errors 10 | . . . . . . . . . . . . . . . 10 Matter Fused 10 | . . . . . 1 . . . . . . . . 1 8 Heat Flow Errors 5 | . . . . . 3 . . . . . . . . . 2 Energy Discharges 2 | . . . . . . . . . . . . . . . 2 Parts Rejected 2 | . . . . . 1 . . . . . . . . . 1 Data Loss (minor) 7 | . . . . . 5 . . . . . . . . . 2 Data Loss (major) 2 | . . . . . 1 . . . . . . . . . 1 Alerts 1 | . . . . . 1 . . . . . . . . . . Misdirections 5 | . . . . . . . . . . . . . . . 5 Overload Shots . | . . . . . . . . . . . . . . . . Overflow Damage 5001 | . . . . . 145 28 9 . . 336 74 102 285 103 3919 Projectiles 1351 | . . . . . 145 28 9 . . 26 74 102 187 103 677 Explosions 909 | . . . . . . . . . . 279 . . 98 . 532 Melee 2741 | . . . . . . . . . . 31 . . . . 2710 Knockbacks . | . . . . . . . . . . . . . . . . Impact . | . . . . . . . . . . . . . . . . Kinetic . | . . . . . . . . . . . . . . . . Secondary . | . . . . . . . . . . . . . . . . Self-Inflicted Damage 78 | . . 18 . . 30 . . . . 30 . . . . . Shots 4 | . . 1 . . 2 . . . . 1 . . . . . Rammed . | . . . . . . . . . . . . . . . . Targets Rammed . | . . . . . . . . . . . . . . . . Kicked . | . . . . . . . . . . . . . . . . Crushed . | . . . . . . . . . . . . . . . . Highest Temperature 522 | . . . . 136 522 . . . . . . . . . . Average Temperature 100 | . . . . 37 171 . . . . . . . . . . Received Heat Transfer 4379 | . 16 . 34 186 168 30 18 . 27 171 125 101 73 33 3397 Siege Activations . | . . . . . . . . . . . . . . . . Martial Activations . | . . . . . . . . . . . . . . . . Shielding Activations . | . . . . . . . . . . . . . . . . Robots Disrupted . | . . . . . . . . . . . . . . . . Combat Hostiles . | . . . . . . . . . . . . . . . . Robots Corrupted . | . . . . . . . . . . . . . . . . Combat Hostiles . | . . . . . . . . . . . . . . . . Parts Fried 7 | . . . . . . . . . . . 2 1 . . 4 Impact Corruptions . | . . . . . . . . . . . . . . . . Robots Melted 39 | . . . . . 10 2 1 . 1 3 1 5 7 2 7 Combat Hostiles 36 | . . . . . 8 1 1 . 1 3 1 5 7 2 7 Parts Melted 367 | . 1 1 . 19 110 7 5 . 2 25 22 68 43 12 52 Heat Transferred 92911 | 50 609 459 656 2711 20047 2638 1455 . 1281 6099 5722 11934 9137 4090 26023 Parts Sabotaged 1 | . . . . . . . . . . . . . . . 1 Parts Stolen . | . . . . . . . . . . . . . . . . Parts Stripped . | . . . . . . . . . . . . . . . . Power Chain Reactions . | . . . . . . . . . . . . . . . . Alert | -11 -10 -10 -10 -7 -5 -5 -5 -5 -4 -4 -3 -3 -2 -2 -2 ------- Run | Yrd Mat Min Sub Scr Fac Upp Upp Zhi Pro Fac Res Tes Res Qua Frg Maximum Alert Level 5 | . . . . . 2 . . . . 4 2 2 3 2 5 Low Security (%) 59 | 100 100 100 . . 95 . . . . 59 59 27 14 64 9 Level 1 13 | . . . . . 3 . . . . 14 31 48 22 34 12 Level 2 7 | . . . . . . . . . . 21 8 23 9 . 6 Level 3 3 | . . . . . . . . . . 3 . . 53 . 2 Level 4 . | . . . . . . . . . . 1 . . . . 2 Level 5 15 | . . . . . . . . . . . . . . . 66 High Security . | . . . . . . . . . . . . . . . . Max Security . | . . . . . . . . . . . . . . . . Peak Influence 4855 | 5 190 70 . . 434 . . . . 1188 485 652 954 409 4855 Initial 334 | . . 44 . . . . . . . 9 63 57 165 334 53 Average 619 | 1 54 24 . . 53 . . . . 229 153 292 598 170 2163 Influence Increases 20498 | 5 317 124 80 . 2502 396 181 . 304 2137 1142 1840 1665 875 8930 Destroy 0b10 Robot/C 12920 | . 240 80 80 . 1400 260 160 . 240 1000 600 1200 920 400 6340 Destroy 0b10 Robot/NC 710 | 5 25 20 . . 135 . . . . 105 100 55 40 35 190 Destroy Leader 2252 | . 50 20 . . 372 50 20 . 10 210 128 138 214 56 984 Allied During Kill 2098 | . . . . . 183 86 1 . 54 309 232 353 275 137 468 Trap Triggered on 0b10 20 | . . . . . . . . . . . 10 . . . 10 Select Force Hacks 90 | . . . . . 60 . . . . . . . . 30 . Disable Machine 200 | . . 4 . . 36 . . . . 56 8 24 12 28 32 Anti-Garrison Action 150 | . . . . . 150 . . . . . . . . . . Destroy Structure 1758 | . 2 . . . 166 . . . . 442 64 70 204 189 621 Partial Spotted 30 | . . . . . . . . . . 15 . . . . 15 Lose Combat Pursuer 270 | . . . . . . . . . . . . . . . 270 Influence Decreases 15698 | 5 157 284 80 . 2502 396 181 . 283 1994 1168 1586 1266 1537 4259 Entered New Map 1070 | . . 116 . . . . . . . 12 101 81 227 457 76 Time Decay 9525 | 5 157 168 80 . 2192 356 181 . 283 1181 617 525 480 660 2640 Lost Part 40 | . . . . . 10 . . . . . . . . . 30 Lost Ally 1499 | . . . . . . 40 . . . 51 150 80 259 120 799 Purge Threat 3564 | . . . . . 300 . . . . 750 300 900 300 300 714 Squads Dispatched 75 | . . . . . 24 . . . . 12 7 15 5 7 5 Investigation 18 | . . . . . 10 . . . . 1 3 . . 1 3 Extermination 25 | . . . . . 10 . . . . 4 3 2 2 2 2 Reinforcement 25 | . . . . . 3 . . . . 3 1 12 3 3 . Assault 3 | . . . . . 1 . . . . 1 . 1 . . . Garrison 4 | . . . . . . . . . . 3 . . . 1 . Intercept . | . . . . . . . . . . . . . . . . Searches Triggered . | . . . . . . . . . . . . . . . . Unchained Authorized 1 | . . . . . . . . . . 1 . . . . . Construction Impeded 2 | . . . . . . . . . . . 1 . 1 . . Haulers Reinforced 7 | . . . . . 3 . . . . 1 . 1 2 . . Active Scanning Responses . | . . . . . . . . . . . . . . . . Cargo Convoy Interrupts . | . . . . . . . . . . . . . . . . Stealth | -11 -10 -10 -10 -7 -5 -5 -5 -5 -4 -4 -3 -3 -2 -2 -2 --------- Run | Yrd Mat Min Sub Scr Fac Upp Upp Zhi Pro Fac Res Tes Res Qua Frg Distress Signals 15 | . 1 . . . 1 . . . . 1 1 1 6 1 3 Communications Jammed 536 | . . . . . 13 . . . . 21 7 45 100 1 349 Distress Signals 524 | . . . . . 11 . . . . 21 4 45 93 1 349 Times Spotted 934 | . 14 4 10 27 71 11 7 . 7 42 24 54 37 21 605 Peak Tracking Total 17 | . 3 1 3 5 4 1 2 . 2 6 4 6 4 3 17 Tactical Retreats 31 | . . . 1 1 2 1 . . . 3 1 1 2 . 19 ECM-based Alert Blocks 54 | . . . 23 . 3 1 . . . 3 1 2 2 . 19 Traps | -11 -10 -10 -10 -7 -5 -5 -5 -5 -4 -4 -3 -3 -2 -2 -2 ------- Run | Yrd Mat Min Sub Scr Fac Upp Upp Zhi Pro Fac Res Tes Res Qua Frg Traps Triggered 6 | . 2 1 1 . 1 . . . . 1 . . . . . Indirectly . | . . . . . . . . . . . . . . . . Trap Hack Attempts . | . . . . . . . . . . . . . . . . Triggered . | . . . . . . . . . . . . . . . . Disarmed 10 | . . . . . 6 . . . . . . . . . 4 Reprogrammed 4 | . . . . . . . . . . . . . . . 4 Reused 1 | . . . . . . . . . . . . . . . 1 Traps Extracted . | . . . . . . . . . . . . . . . . Installed . | . . . . . . . . . . . . . . . . Triggered 2 | . . . . . . . . . . . 1 . . . 1 Machines | -11 -10 -10 -10 -7 -5 -5 -5 -5 -4 -4 -3 -3 -2 -2 -2 ---------- Run | Yrd Mat Min Sub Scr Fac Upp Upp Zhi Pro Fac Res Tes Res Qua Frg Machines Disabled 67 | . . 4 1 2 10 . . . 1 19 2 8 3 7 10 Max in Single Turn 4 | . . 3 1 1 4 . . . . 4 1 2 1 2 2 Garrison Access 7 | . . . . . 2 . . . . 2 1 1 . 1 . Machines Repaired . | . . . . . . . . . . . . . . . . Machines Dismantled . | . . . . . . . . . . . . . . . . Machines Sabotaged . | . . . . . . . . . . . . . . . . Overloaded Fab Kills . | . . . . . . . . . . . . . . . . Hacking | -11 -10 -10 -10 -7 -5 -5 -5 -5 -4 -4 -3 -3 -2 -2 -2 --------- Run | Yrd Mat Min Sub Scr Fac Upp Upp Zhi Pro Fac Res Tes Res Qua Frg Machines Accessed 118 | . 4 1 . 6 36 . . 9 . 12 12 8 3 11 16 Terminals 60 | . 4 . . . 19 . . . . 6 4 7 2 9 9 Fabricators 16 | . . . . . 5 . . . . 3 3 . 1 . 4 Repair Stations . | . . . . . . . . . . . . . . . . Recycling Units 15 | . . . . . 8 . . . . 1 3 . . . 3 Scanalyzers 3 | . . . . . 1 . . . . . 1 . . 1 . Garrison Access 8 | . . . . . 3 . . . . 2 1 1 . 1 . Total Hacks 652 | . 20 1 . 44 225 . . 48 . 80 69 41 13 44 67 Successful 635 | . 20 1 . 44 222 . . 48 . 77 65 38 12 44 64 Failed 17 | . . . . . 3 . . . . 3 4 3 1 . 3 Catastrophic 1 | . . . . . . . . . . 1 . . . . . Database Lockouts . | . . . . . . . . . . . . . . . . Manual 311 | . 11 . . . 102 . . . . 38 34 42 9 33 42 Terminals 345 | . 20 . . . 112 . . . . 41 37 40 12 41 42 Fabricators 166 | . . . . . 86 . . . . 35 23 . 1 . 21 Repair Stations . | . . . . . . . . . . . . . . . . Recycling Units 25 | . . . . . 14 . . . . 2 5 . . . 4 Scanalyzers 15 | . . . . . 10 . . . . . 3 . . 2 . Garrison Access 8 | . . . . . 3 . . . . 2 1 1 . 1 . Terminal Hacks 377 | . 19 1 . 44 96 . . 48 . 32 32 33 10 34 28 Record 86 | . . . . 38 3 . . 36 . . . 5 1 3 . Part Schematic 36 | . . . . . 21 . . 4 . . 7 2 . . 2 Robot Schematic 19 | . . . . . 14 . . . . . 4 . . 1 . Robot Analysis 16 | . . . . 6 4 . . 4 . . 1 . . . 1 Prototype ID Bank 14 | . 2 . . . 1 . . 4 . 1 2 . 1 3 . Open Door 4 | . . 1 . . 2 . . . . . . 1 . . . Level Access Points 5 | . 1 . . . . . . . . . . 1 . 2 1 Branch Access Points 12 | . 1 . . . 1 . . . . 1 2 2 1 3 1 Emergency Access Points 4 | . . . . . 1 . . . . . 1 . . 2 . Machine Index 9 | . 1 . . . 1 . . . . 1 1 2 1 1 1 Fabricator Index 1 | . . . . . 1 . . . . . . . . . . Repair Station Index 1 | . . . . . 1 . . . . . . . . . . Recycling Unit Index 1 | . . . . . 1 . . . . . . . . . . Alert Level 38 | . 2 . . . 11 . . . . 6 2 6 2 4 5 Unreport Threat 24 | . . . . . 2 . . . . 5 2 6 2 2 5 Locate Traps 5 | . 1 . . . 1 . . . . . . . . 1 2 Disarm Traps 2 | . . . . . 1 . . . . . . . . . 1 Reprogram Traps 1 | . . . . . . . . . . . . . . . 1 Dispatch Records 26 | . 1 . . . 8 . . . . 4 2 3 1 5 2 Maintenance Status 2 | . . . . . . . . . . 1 1 . . . . Security Status 1 | . . . . . . . . . . . 1 . . . . Surveillance Status 1 | . 1 . . . . . . . . . . . . . . Transport Status 3 | . 2 . . . . . . . . . . . . 1 . Assault Status 1 | . . . . . 1 . . . . . . . . . . Recall Investigation 10 | . . . . . 7 . . . . 1 1 . . 1 . Recall Extermination 10 | . . . . . 3 . . . . 4 1 1 . . 1 Recall Reinforcements 5 | . . . . . 2 . . . . . 1 1 1 . . Recall Assault 8 | . . . . . 3 . . . . 3 1 1 . . . Hauler Manifests 7 | . 2 . . . 1 . . . . 1 2 . . 1 . Registered Components 8 | . 2 . . . 2 . . . . 1 . . . 2 1 Registered Prototypes 5 | . 1 . . . 1 . . . . 1 . . . 1 1 Zone Layout 10 | . 2 . . . 2 . . . . 2 . . . 1 3 Protovariant Controls 2 | . . . . . . . . . . . . 2 . . . Fabricator Hacks 154 | . . . . . 82 . . . . 34 20 . 1 . 17 Network Status 1 | . . . . . 1 . . . . . . . . . . Load Schematic 77 | . . . . . 41 . . . . 17 10 . . . 9 Build 76 | . . . . . 40 . . . . 17 10 . 1 . 8 Repair Station Hacks . | . . . . . . . . . . . . . . . . Recycling Unit Hacks 10 | . . . . . 6 . . . . 1 2 . . . 1 Report Inventory 10 | . . . . . 6 . . . . 1 2 . . . 1 Scanalyzer 13 | . . . . . 9 . . . . . 3 . . 1 . Insert Component 2 | . . . . . 1 . . . . . 1 . . . . Analyze 1 | . . . . . 1 . . . . . . . . . . Retrieve Study 10 | . . . . . 7 . . . . . 2 . . 1 . Garrison Access Hacks 7 | . . . . . 2 . . . . 2 1 1 . 1 . Seal Access 6 | . . . . . 1 . . . . 2 1 1 . 1 . Coupler Status 1 | . . . . . 1 . . . . . . . . . . Unauthorized Hacks 73 | . 1 . . . 27 . . . . 8 7 4 1 8 17 Terminals 43 | . 1 . . . 13 . . . . 6 1 4 1 7 10 Assimilate 4 | . . . . . 2 . . . . 1 . . . . 1 Botnet 39 | . 1 . . . 11 . . . . 5 1 4 1 7 9 Fabricators 12 | . . . . . 4 . . . . 1 3 . . . 4 Fabnet 12 | . . . . . 4 . . . . 1 3 . . . 4 Repair Stations . | . . . . . . . . . . . . . . . . Recycling Units 15 | . . . . . 8 . . . . 1 3 . . . 3 Fedlink 15 | . . . . . 8 . . . . 1 3 . . . 3 Scanalyzers 2 | . . . . . 1 . . . . . . . . 1 . Extract 2 | . . . . . 1 . . . . . . . . 1 . Garrison Access 1 | . . . . . 1 . . . . . . . . . . Eject 1 | . . . . . 1 . . . . . . . . . . Data Cores Recovered 11 | . . . . . 4 . . . . 1 2 1 1 1 1 Used 4 | . . . . . 3 . . . . . 1 . . . . Hacking Detections 46 | . . . . . 16 . . . . 6 8 4 2 3 7 Full Trace Events . | . . . . . . . . . . . . . . . . Feedback Events . | . . . . . . . . . . . . . . . . Feedback Blocked . | . . . . . . . . . . . . . . . . Robot Schematics Acquired 22 | . . . . . 14 . . . . . 4 2 . 2 . Robots Built 104 | . . . . . 42 . . . . 28 14 . 3 . 17 Authchips . | . . . . . . . . . . . . . . . . Time 5458 | . . . . . 2704 . . . . 1556 534 . 102 . 562 Total Robot Build Rating 761 | . . . . . 278 . . . . 195 118 . 24 . 146 Part Schematics Acquired 115 | . . . . . 48 1 . 5 4 1 10 29 2 7 8 Parts Built 26 | . . . . . 24 . . . . . 2 . . . . Authchips . | . . . . . . . . . . . . . . . . Time 1419 | . . . . . 1209 . . . . . 210 . . . . Total Part Build Rating 151 | . . . . . 135 . . . . . 16 . . . . Part Studies Acquired 10 | . . . . . 7 . . . . . 2 . . 1 . Parts Repaired . | . . . . . . . . . . . . . . . . Time . | . . . . . . . . . . . . . . . . Parts Recycled . | . . . . . . . . . . . . . . . . Recycled Matter . | . . . . . . . . . . . . . . . . Retrieved Matter . | . . . . . . . . . . . . . . . . Retrieved Components . | . . . . . . . . . . . . . . . . Parts Scanalyzed 1 | . . . . . 1 . . . . . . . . . . Part Schematics Acquired 1 | . . . . . 1 . . . . . . . . . . Parts Damaged . | . . . . . . . . . . . . . . . . Bothacking | -11 -10 -10 -10 -7 -5 -5 -5 -5 -4 -4 -3 -3 -2 -2 -2 ------------ Run | Yrd Mat Min Sub Scr Fac Upp Upp Zhi Pro Fac Res Tes Res Qua Frg Used RIF Installer . | . . . . . . . . . . . . . . . . Robots Hacked 40 | . . . . . . . . . 1 2 . 2 5 2 28 Non-combat . | . . . . . . . . . . . . . . . . Combat 40 | . . . . . . . . . 1 2 . 2 5 2 28 Robot Hacks Applied 2 | . . . . . . . . . 1 . . . 1 . . parse_system 2 | . . . . . . . . . 1 . . . 1 . . Relay Couplers Released 3 | . . . . . 3 . . . . . . . . . . Ejected 2 | . . . . . 2 . . . . . . . . . . Programmers 1 | . . . . . 1 . . . . . . . . . . Fabnet Peak Effective % 12 | . . . . . . . . . 12 12 4 4 6 6 6 Autooverrided 39 | . . . . . . . . . . 2 . 2 5 2 28 Robots Rewired 2 | . . . . . . . . . 2 . . . . . . Allies Hacked 23 | . . . . . 2 1 . . . 3 1 5 5 2 4 Hacks Repelled 8 | . . . . . . . . . . . 2 1 5 . . Allies | -11 -10 -10 -10 -7 -5 -5 -5 -5 -4 -4 -3 -3 -2 -2 -2 -------- Run | Yrd Mat Min Sub Scr Fac Upp Upp Zhi Pro Fac Res Tes Res Qua Frg Total Allies 160 | . . . . . 44 1 . . 2 33 14 7 10 3 46 Largest Group 56 | . . . . . 36 36 16 16 18 44 56 45 35 23 21 Highest-Rated Group 3013 | . . . . . 1909 1932 824 824 903 2319 3013 2491 1886 1448 1293 Highest-Rated Ally 344 | . . . . . 82 82 82 82 82 82 82 82 148 344 344 Total Orders . | . . . . . . . . . . . . . . . . Ally Attacks 1021 | . . . . . 42 20 . . 19 121 108 180 129 123 279 Total Damage 33928 | . . . . . 911 406 . . 658 4248 3616 6294 3995 3684 10116 Kills 186 | . . . . . 9 4 . . 5 36 22 37 18 12 43 Allies Corrupted 7 | . . . . . . . . . . 1 . . 4 1 1 Allies Melted 2 | . . . . 1 . . . . . . . . . . 1 Intel | -11 -10 -10 -10 -7 -5 -5 -5 -5 -4 -4 -3 -3 -2 -2 -2 ------- Run | Yrd Mat Min Sub Scr Fac Upp Upp Zhi Pro Fac Res Tes Res Qua Frg Active Infowar (turns) 17190 | . 84 309 165 535 5305 624 501 94 390 2105 1260 705 659 899 3555 Optics 17190 | . 84 309 165 535 5305 624 501 94 390 2105 1260 705 659 899 3555 Sensors 13617 | . . . . 506 5305 624 501 94 390 2105 1260 705 659 899 569 Structural 14203 | . . . . 231 5305 624 501 94 390 2100 1260 705 659 899 1435 Seismic 906 | . . 75 165 535 131 . . . . . . . . . . Decoding 11423 | . . . . . 3430 624 501 94 390 2105 1260 705 659 899 756 Cloaking 12122 | . . . . . 4321 624 501 94 390 2105 1260 698 659 899 571 Jamming 15176 | . . . . 426 5305 624 501 94 390 2105 1260 705 659 899 2208 ECM 14674 | . 24 309 165 535 5305 624 501 94 390 2105 1260 705 659 899 1099 Robot Analysis Total 16 | . . . . 6 4 . . 4 . . 1 . . . 1 Derelict Logs Recovered 6 | . . 1 . . . 2 1 . 2 . . . . . . Drone Launches . | . . . . . . . . . . . . . . . . Drone Recoveries . | . . . . . . . . . . . . . . . . Decoded 0b10 Intel 79 | . . . . . 13 . . . . 9 14 8 18 4 13 Garrisons 1 | . . . . . . . . . . 1 . . . . . Patrols 35 | . . . . . 13 . . . . 3 6 1 4 2 6 Investigations 3 | . . . . . . . . . . . 2 . . . 1 Reinforcements 10 | . . . . . . . . . . 1 . 7 . 2 . Guards 30 | . . . . . . . . . . 4 6 . 14 . 6 Exploration | -11 -10 -10 -10 -7 -5 -5 -5 -5 -4 -4 -3 -3 -2 -2 -2 ------------- Run | Yrd Mat Min Sub Scr Fac Upp Upp Zhi Pro Fac Res Tes Res Qua Frg Turns Passed 17545 | 61 379 309 165 535 5305 624 501 94 390 2105 1260 705 659 899 3554 Spaces Moved 17896 | 40 478 685 324 1407 2872 858 613 198 930 1649 1140 1266 662 1067 3707 Core 16 | 16 . . . . . . . . . . . . . . . Treads . | . . . . . . . . . . . . . . . . Legs 162 | 24 138 . . . . . . . . . . . . . . Wheels . | . . . . . . . . . . . . . . . . Hover . | . . . . . . . . . . . . . . . . Flight 17718 | . 340 685 324 1407 2872 858 613 198 930 1649 1140 1266 662 1067 3707 Fastest Speed 16 | 50 26 29 26 26 16 16 16 16 16 16 16 16 26 26 16 Average Speed 21 | 92 55 29 28 26 17 16 16 16 16 16 16 23 26 26 20 Slowest Speed 120 | 120 120 29 29 26 26 16 16 16 16 19 16 26 26 26 26 Overloaded Moves . | . . . . . . . . . . . . . . . . Propulsion Burnouts . | . . . . . . . . . . . . . . . . Robots Hopped 93 | . . 2 . . 13 1 . . . 2 4 3 19 15 34 Potential Cave-ins 15 | . . . . . . . . . . . . . . . 15 Cave-ins Triggered 2 | . . . . . . . . . . . . . . . 2 Teleports 1 | . . . . . . . . 1 . . . . . . . Exploration Rate (%) 65 | 4 81 98 21 92 76 96 85 64 94 35 21 96 25 88 67 Regions Visited 15 Branch Regions 10 Pre-discovered Areas 6 | . . 1 . . 1 1 . 3 . . . . . . . Known Exits Taken 15 | 1 1 1 1 1 1 1 1 1 1 1 1 1 1 1 . Unknown Exits Taken . | . . . . . . . . . . . . . . . . Scrap Searched 14 | . . 3 2 2 . 2 2 . 3 . . . . . . Spaces Dug 74 | . . . 30 . 7 . . . . 8 16 2 . . 11 Terrain Destroyed 740 | . . . 37 1 102 12 6 . 4 221 32 27 72 60 166 Melee . | . . . . . . . . . . . . . . . . Projectile 247 | . . . . 1 58 12 6 . 4 18 32 27 17 19 53 AOE 493 | . . . 37 . 44 . . . . 203 . . 55 41 113 Terrain Rammed . | . . . . . . . . . . . . . . . . Walls Destroyed . | . . . . . . . . . . . . . . . . Machines Disabled . | . . . . . . . . . . . . . . . . Actions | -11 -10 -10 -10 -7 -5 -5 -5 -5 -4 -4 -3 -3 -2 -2 -2 --------- Run | Yrd Mat Min Sub Scr Fac Upp Upp Zhi Pro Fac Res Tes Res Qua Frg Total 29165 | 60 553 773 369 1524 7417 1306 995 258 1152 3373 2106 1522 1005 1596 5156 Wait 9012 | . 8 60 14 26 4261 425 368 49 197 1582 880 137 248 465 292 Move 17731 | 39 477 680 323 1406 2847 855 612 197 929 1644 1132 1259 628 1044 3659 Hop 57 | . . 2 . . 11 1 . . . 2 3 3 14 7 14 Pick Up 187 | 10 24 11 4 17 26 . . 1 1 8 5 10 1 16 53 Fast Attach 31 | . . 1 . 1 11 . . 6 . 4 . 3 1 . 4 Attach 76 | 9 13 5 3 8 7 . . . . 2 . 5 . . 24 Detach 22 | . 4 . 2 1 4 . . . . 2 . 1 . . 8 Swap 65 | . . . . 3 14 . . . 2 6 5 3 5 4 23 Drop 135 | . 1 2 3 16 42 . . 5 1 13 3 16 3 5 25 Fire 783 | 2 22 9 15 29 144 18 10 . 12 65 52 79 64 42 220 Melee 407 | . . . . . . . . . . 1 1 . 1 . 404 Ram . | . . . . . . . . . . . . . . . . Kick . | . . . . . . . . . . . . . . . . Crush . | . . . . . . . . . . . . . . . . Escape Stasis 1 | . . . . . . . . . . . . 1 . . . Rewire 2 | . . . . . . . . . . . . 2 . . . Trap . | . . . . . . . . . . . . . . . . Miscellaneous 656 | . 4 3 5 17 50 7 5 . 10 44 25 3 40 13 430 Route ------- -11/Scrapyard -10/Materials (discovered 4 exits: *Mat x3 / *Min) -10/Mines (discovered 3 exits: *Mat x2 / *Sub) -10/Subcaves (discovered 2 exits: *Rec / *Scr) -7/Scraptown (discovered 2 exits: *Fac x2) -5/Factory (discovered 8 exits: *Fac x4 / *Upp x2 / *Ext x2) -5/Upper Caves -5/Upper Caves (discovered 2 exits: *Fac / *Zhi) -5/Zhirov -4/Proximity Caves -4/Factory (discovered 4 exits: *Res / *Upp x2 / *Arm) -3/Research (discovered 2 exits: *Tes x2) -3/Testing -2/Research (discovered 4 exits: *Acc x2 / *Qua x2) -2/Quarantine (discovered 3 exits: *Acc / *Sec / *Frg) -2/Protoforge 0bPrime History --------- Turn | Location | Event 1 | -11/Scrapyard | Upgraded with Propulsion slot (x3) 1 | -11/Scrapyard | Upgraded with Utility slot (x16) 1 | -11/Scrapyard | Upgraded with Weapon slot (x3) 6 | -11/Scrapyard | Identified exit to Materials 6 | -11/Scrapyard | Discovered exit to Materials (range 16) 62 | -11/Scrapyard | Entered Materials 174 | -10/Materials | Identified exit to Mines 174 | -10/Materials | Identified exit to Materials 441 | -10/Materials | Entered Mines 443 | -10/Mines | Reached level 2 498 | -10/Mines | Received a Rocket Launcher from a helpful Derelict 521 | -10/Mines | Met a Derelict bent on vengeance 552 | -10/Mines | Build established: Wizard-Scout 556 | -10/Mines | Found a damaged Exp. Sensor Array with a note attached 556 | -10/Mines | Found Prototype Device 560 | -10/Mines | Discovered exit to Materials (range 12) 561 | -10/Mines | Learned location of 1 exit from Materials 599 | -10/Mines | Discovered exit to Materials (range 16) 646 | -10/Mines | Learned location of Storage (-7) 662 | -10/Mines | Met a Derelict who couldn't figure out how to use a Trap Extractor 668 | -10/Mines | Identified Exp. Sensor Array 748 | -10/Mines | Identified exit to Subcaves 748 | -10/Mines | Discovered exit to Subcaves (range 6) 750 | -10/Mines | Entered Subcaves 751 | -10/Subcaves | Approached by a straggling Scientist 752 | -10/Subcaves | Reached level 3 773 | -10/Subcaves | Ambushed by Subdwellers from Twisted Machinery 782 | -10/Subcaves | Identified exit to Recycling 782 | -10/Subcaves | Discovered exit to Recycling (range 16) 858 | -10/Subcaves | Disturbed a concealed Subdweller 885 | -10/Subcaves | Shifting Twisted Machinery released Sub. Power Source 914 | -10/Subcaves | Identified exit to Scraptown 915 | -10/Subcaves | Entered Scraptown 917 | -7/Scraptown | Reached level 4 917 | -7/Scraptown | Reached level 5 968 | -7/Scraptown | Visited Awakened 976 | -7/Scraptown | Visited The Evicted 1067 | -7/Scraptown | Identified exit to Factory 1067 | -7/Scraptown | Discovered exit to Factory (range 5) 1084 | -7/Scraptown | Visited SPCMW 1086 | -7/Scraptown | Visited Red Mages 1099 | -7/Scraptown | Visited Symbiants 1108 | -7/Scraptown | Visited Shadow of the Wyrm 1116 | -7/Scraptown | Visited TADAMA 1125 | -7/Scraptown | Visited UFD Registry 1125 | -7/Scraptown | Registered with UFD as "Quantumcycle" 1167 | -7/Scraptown | Visited Curators Association 1174 | -7/Scraptown | Visited Scrapoid Pod Storage 1180 | -7/Scraptown | Visited Chapter 10 1193 | -7/Scraptown | Met Optimus 1193 | -7/Scraptown | Reached level 6 1193 | -7/Scraptown | Accepted into 0bPrime 1206 | -7/Scraptown | Visited Analyses Database 1211 | -7/Scraptown | Visited Cartography Club 1212 | -7/Scraptown | Civil war broke out across Scraptown 1218 | -7/Scraptown | Found Deep Structural Scanner 1243 | -7/Scraptown | Found Scrap Suit 1245 | -7/Scraptown | Visited Scrap Suit Storage 1355 | -7/Scraptown | Lost 4 allies 1390 | -7/Scraptown | Destroyed 13 combat bots 1406 | -7/Scraptown | Found Scrap Suit 1426 | -7/Scraptown | Visited A0-MCA Data Center 1427 | -7/Scraptown | Found Prototype Processor 1450 | -7/Scraptown | Entered Factory 1452 | -5/Factory | Reached level 7 1452 | -5/Factory | Reached level 8 1452 | -5/Factory | Reached level 9 1452 | -5/Factory | Reached level 10 1452 | -5/Factory | Reached level 11 1452 | -5/Factory | Reached level 12 1452 | -5/Factory | Reached level 13 1452 | -5/Factory | Reached level 14 1452 | -5/Factory | Reached level 15 1452 | -5/Factory | Reached level 16 1452 | -5/Factory | Reached level 17 1452 | -5/Factory | Reached level 18 1452 | -5/Factory | Reached level 19 1452 | -5/Factory | Reached level 20 1453 | -5/Factory | Loaded intel: 8 recycling unit locations 1553 | -5/Factory | Identified exit to Factory 1553 | -5/Factory | Discovered exit to Factory (range 28) 1581 | -5/Factory | Identified Expert System 1608 | -5/Factory | Identified exit to Extension 1608 | -5/Factory | Discovered exit to Extension (range 10) 1630 | -5/Factory | Identified exit to Upper Caves 1650 | -5/Factory | Discovered exit to Factory (range 25) 1694 | -5/Factory | Learned location of Protoforge (-2) 1696 | -5/Factory | Reached level 21 1748 | -5/Factory | Tech Extrapolator generated special schematic: Deep Structural Scanner 1849 | -5/Factory | Fabricated Adv. Surge Thruster (x2) 1969 | -5/Factory | Fabricated Adv. Surge Thruster (x2) 2128 | -5/Factory | Fabricated Adv. Signal Interpreter (x2) 2236 | -5/Factory | Fabricated Imp. Transmission Jammer (x2) 2335 | -5/Factory | Fabricated Jamming Amplifier (x2) 2433 | -5/Factory | Fabricated Cloaking Device (x2) 2541 | -5/Factory | Fabricated Imp. Weapon Cycler (x2) 2627 | -5/Factory | Fabricated Armor Integrity Analyzer (x2) 2742 | -5/Factory | Spotted B-75 Beast 2753 | -5/Factory | Destroyed B-75 Beast 2947 | -5/Factory | Discovered exit to Factory (range 17) 3028 | -5/Factory | Reached level 22 3149 | -5/Factory | Tech Extrapolator generated special schematic: Energy Deflector 3274 | -5/Factory | Fabricated Exp. ECM Suite (x1) 3323 | -5/Factory | Fabricated 0b10 Decoder Chip [Skirmisher] (x2) 3416 | -5/Factory | Fabricated Adv. Remote Force Field (x1) 3442 | -5/Factory | Tech Extrapolator generated special schematic: Machine Rigger 3510 | -5/Factory | Fabricated G-67 Veteran (x3) 3594 | -5/Factory | Fabricated I-47 Archangel (x1) 3687 | -5/Factory | Fabricated H-77 Assassin (x2) 3792 | -5/Factory | Fabricated P-80 Master (x2) 3850 | -5/Factory | Fabricated O-24 Administrator (x1) 3952 | -5/Factory | Fabricated C-55 Analyst (x1) 4054 | -5/Factory | Fabricated Y-72 Warden (x2) 4159 | -5/Factory | Discovered exit to Factory (range 22) 4171 | -5/Factory | Fabricated O-24 Administrator (x1) 4231 | -5/Factory | Fabricated M-28 Smith (x1) 4315 | -5/Factory | Fabricated I-47 Archangel (x1) 4325 | -5/Factory | Lost 6 allies 4417 | -5/Factory | Fabricated Y-72 Warden (x2) 4566 | -5/Factory | Fabricated O-24 Administrator (x1) 4625 | -5/Factory | Fabricated M-28 Smith (x1) 4732 | -5/Factory | P-80 Master assimilated allied Analyst 6a 4738 | -5/Factory | Fabricated P-80 Master (x2) 4816 | -5/Factory | Master 6c assimilated hostile S-27 Virus 4817 | -5/Factory | Reached level 23 4854 | -5/Factory | Fabricated L-61 Swordsman (x3) 4906 | -5/Factory | Tech Extrapolator generated special schematic: Mak. Core Shielding 4947 | -5/Factory | Fabricated H-77 Assassin (x2) 5049 | -5/Factory | Fabricated P-80 Master (x2) 5152 | -5/Factory | Fabricated C-55 Analyst (x1) 5211 | -5/Factory | Fabricated M-28 Smith (x1) 5305 | -5/Factory | Fabricated X-77 Beamer (x2) 5389 | -5/Factory | Fabricated I-47 Archangel (x1) 5448 | -5/Factory | Fabricated O-24 Administrator (x1) 5551 | -5/Factory | Fabricated P-80 Master (x2) 5607 | -5/Factory | Master 6e assimilated hostile S-27 Virus 5875 | -5/Factory | Fabricated C-55 Analyst (x1) 6063 | -5/Factory | Fabricated G-67 Veteran (x3) 6251 | -5/Factory | Fabricated M-30 Cleanser (x1) 6438 | -5/Factory | Fabricated M-36 Artificer (x1) 6533 | -5/Factory | Fabricated 0b10 Decoder Chip [Scout] (x2) 6628 | -5/Factory | Fabricated 0b10 Decoder Chip [Generic] (x2) 6755 | -5/Factory | Entered Upper Caves 6755 | -5/Upper Caves | Accompanied by 36 allies 6930 | -5/Upper Caves | Master 6e assimilated hostile G-67 Veteran 6934 | -5/Upper Caves | Learned Factory terminal intel 7110 | -5/Upper Caves | Spotted B-75 Beast 7120 | -5/Upper Caves | Destroyed B-75 Beast 7206 | -5/Upper Caves | Identified exit to Upper Caves 7206 | -5/Upper Caves | Discovered exit to Upper Caves (range 17) 7379 | -5/Upper Caves | Entered another Upper Caves area 7379 | -5/Upper Caves | Accompanied by 16 allies 7411 | -5/Upper Caves | Discovered exit to Factory (range 8) 7476 | -5/Upper Caves | Attracted the attention of an 0b10 checkpoint 7477 | -5/Upper Caves | Destroyed 7 combat bots 7485 | -5/Upper Caves | Identified exit to Zhirov 7485 | -5/Upper Caves | Discovered exit to Zhirov (range 19) 7880 | -5/Upper Caves | Entered Zhirov 7880 | -5/Zhirov | Accompanied by 16 allies 7880 | -5/Zhirov | Identified exit to Proximity Caves 7880 | -5/Zhirov | Discovered exit to Proximity Caves (range 3) 7893 | -5/Zhirov | Met Zhirov 7896 | -5/Zhirov | Learned location of Quarantine (-2) 7896 | -5/Zhirov | Learned location of Testing (-3) 7896 | -5/Zhirov | Learned location of Command (-1) 7897 | -5/Zhirov | Zhirov requested help retrieving the SGEMP Prototype 7904 | -5/Zhirov | Found Alien Artifact 7904 | -5/Zhirov | Identified Transdimensional Reconstructor 7904 | -5/Zhirov | Warped through subspace 7915 | -5/Zhirov | Found Alien Artifact 7915 | -5/Zhirov | Identified Integrated Dissipator 7915 | -5/Zhirov | Installed Integrated Dissipator, increased core heat dissipation (+20) 7974 | -5/Zhirov | Entered Proximity Caves 7974 | -4/Proximity Caves | Accompanied by 16 allies 7976 | -4/Proximity Caves | Reached level 24 8043 | -4/Proximity Caves | Tech Extrapolator generated special schematic: Telecube 8086 | -4/Proximity Caves | Discovered exit to Factory (range 14) 8090 | -4/Proximity Caves | Learned Research stockpile data 8119 | -4/Proximity Caves | Attracted the attention of an 0b10 outpost 8191 | -4/Proximity Caves | Tech Extrapolator generated special schematic: Heat Bomb Trap 8364 | -4/Proximity Caves | Entered Factory 8364 | -4/Factory | Accompanied by 18 allies 8365 | -4/Factory | Identified exit to Armory 8366 | -4/Factory | Loaded intel: 26 terminal locations 8366 | -4/Factory | Reached level 25 8407 | -4/Factory | Identified exit to Upper Caves 8407 | -4/Factory | Discovered exit to Upper Caves (range 27) 8524 | -4/Factory | Fabricated C-55 Analyst? 8748 | -4/Factory | Fabricated G-67 Veteran (x3) 8843 | -4/Factory | Fabricated G-67 Veteran (x3) 8946 | -4/Factory | Fabricated P-80 Master (x2) 9047 | -4/Factory | Fabricated H-77 Assassin (x2) 9154 | -4/Factory | Fabricated C-55 Analyst? 9221 | -4/Factory | Lost 3 allies 9255 | -4/Factory | Fabricated M-30 Cleanser? 9362 | -4/Factory | Fabricated P-80 Master? 9471 | -4/Factory | Fabricated P-80 Master (x2) 9527 | -4/Factory | Reached level 26 9528 | -4/Factory | Garrison activated, responded to threat 9583 | -4/Factory | Spotted B-86 Titan 9614 | -4/Factory | First assault squad dispatched 9642 | -4/Factory | Master 6h assimilated hostile G-67 Veteran 9670 | -4/Factory | Destroyed 11 combat bots 9798 | -4/Factory | Fabricated I-47 Archangel (x1) 9862 | -4/Factory | Fabricated O-24 Administrator (x1) 9923 | -4/Factory | Fabricated O-24 Administrator (x1) 10017 | -4/Factory | Fabricated G-67 Veteran? 10115 | -4/Factory | Fabricated X-77 Beamer (x2) 10220 | -4/Factory | Unchained authorized (DW-4LL) 10235 | -4/Factory | Fabricated G-67 Veteran? 10275 | -4/Factory | Identified exit to Research 10275 | -4/Factory | Discovered exit to Research (range 22) 10280 | -4/Factory | DW-4LL burst out of a wall 10285 | -4/Factory | Attached CPS modules to DW-4LL. 10305 | -4/Factory | Allies destroyed DW-4LL 10308 | -4/Factory | Found Exp. Weapon Cycler 10310 | -4/Factory | Found Exp. Armor Integrity Analyzer 10311 | -4/Factory | Found ID Mask 10320 | -4/Factory | Master 7e assimilated hostile S-27 Virus 10331 | -4/Factory | Found Prototype Protection 10357 | -4/Factory | Loaded intel: 8 recycling unit locations 10469 | -4/Factory | Entered Research 10469 | -3/Research | Accompanied by 44 allies 10471 | -3/Research | Reached level 27 10479 | -3/Research | Identified exit to Testing 10483 | -3/Research | Identified DW-4LL's Blast Wall 10560 | -3/Research | Fabricated C-65 Expert (x1) 10614 | -3/Research | Build established: Commander-Ninja 10638 | -3/Research | Fabricated Exp. Cloaking Device (x1) 10716 | -3/Research | Fabricated G-73 Enforcer (x2) 10778 | -3/Research | Fabricated Exp. Signal Interpreter (x1) 10855 | -3/Research | Fabricated G-73 Enforcer (x3) 10932 | -3/Research | Fabricated C-65 Expert (x1) 11006 | -3/Research | Fabricated L-61 Swordsman? 11012 | -3/Research | Fabricated H-88 Terminator? 11065 | -3/Research | Reached level 28 11103 | -3/Research | Lost 6 allies 11161 | -3/Research | Loaded intel: 5 recycling unit locations 11265 | -3/Research | Fabricated P-80 Master (x2) 11287 | -3/Research | Build established: Commander-Scout 11504 | -3/Research | Lost 3 allies 11729 | -3/Research | Entered Testing 11729 | -3/Testing | Accompanied by 42 allies 11731 | -3/Testing | Reached level 29 11768 | -3/Testing | Identified exit to Research 11777 | -3/Testing | Scanned by Researcher 11789 | -3/Testing | Master 8a assimilated hostile C-55 Analyst 11790 | -3/Testing | Master 7a assimilated hostile G-67 Veteran 11800 | -3/Testing | Found AEGIS Remote Shield 11884 | -3/Testing | Found Prototype Ballistic Cannon 11975 | -3/Testing | Identified Omega Cannon 11992 | -3/Testing | Master 7c assimilated hostile G-67 Veteran 12036 | -3/Testing | Destroyed 7 combat bots 12037 | -3/Testing | Reached level 30 12085 | -3/Testing | Spotted Striker 12145 | -3/Testing | Protovariant out of control (PL-B7P83Y1WYH) 12145 | -3/Testing | Unleashed a protovariant (PL-B7P83Y1WYH) 12149 | -3/Testing | Master 7b assimilated hostile G-67 Veteran 12158 | -3/Testing | Spotted Striker 12159 | -3/Testing | Destroyed Striker 12165 | -3/Testing | Destroyed Striker 12170 | -3/Testing | Spotted Alpha 7 12179 | -3/Testing | Allies destroyed Alpha 7 12183 | -3/Testing | Stole the SGEMP Prototype 12378 | -3/Testing | Lost 6 allies 12422 | -3/Testing | Master 8a assimilated hostile H-77 Assassin 12434 | -3/Testing | Entered Research 12434 | -2/Research | Accompanied by 34 allies 12436 | -2/Research | Reached level 31 12470 | -2/Research | Build established: Wizard-Scout 12515 | -2/Research | Tech Extrapolator generated special schematic: Wartreads 12519 | -2/Research | Identified exit to Access 12519 | -2/Research | Discovered exit to Access (range 21) 12528 | -2/Research | Master 8a assimilated hostile W-44 Eye 12562 | -2/Research | Identified exit to Quarantine 12667 | -2/Research | Fabricated B-74 Champion? 12677 | -2/Research | Reached level 32 12723 | -2/Research | Destroyed 15 combat bots 12727 | -2/Research | Found Prototype Device 12728 | -2/Research | Identified Exp. Thermal Shield 12733 | -2/Research | Spotted B-90 Cyclops 12752 | -2/Research | Destroyed B-90 Cyclops 12754 | -2/Research | Lost 3 allies 12778 | -2/Research | Local machine network offline 12803 | -2/Research | Spotted B-90 Cyclops 12836 | -2/Research | Destroyed B-90 Cyclops 12976 | -2/Research | Discovered exit to Access (range 15) 12976 | -2/Research | Spotted B-90 Cyclops 13093 | -2/Research | Entered Quarantine 13093 | -2/Quarantine | Accompanied by 23 allies 13098 | -2/Quarantine | Found Core Reset Matrix 13137 | -2/Quarantine | Found Alien Slashing Weapon 13143 | -2/Quarantine | Identified Sigix Broadsword 13234 | -2/Quarantine | Found Sigix Corpse 13237 | -2/Quarantine | Found Sigix Corpse 13321 | -2/Quarantine | Found Terrabomb 13322 | -2/Quarantine | Found Terrabomb 13342 | -2/Quarantine | P-80 Master assimilated allied Cleanser 6a 13498 | -2/Quarantine | Found Hpw. Transdimensional Reconstructor 13501 | -2/Quarantine | Found Hpw. Transdimensional Reconstructor 13502 | -2/Quarantine | Found Transdimensional Reconstructor 13504 | -2/Quarantine | Found Hpw. Transdimensional Reconstructor 13508 | -2/Quarantine | Found Dimensional Node Initializer 13509 | -2/Quarantine | Found Dimensional Node Initializer 13511 | -2/Quarantine | Found Dimensional Node Initializer 13571 | -2/Quarantine | Garrison activated, responded to threat 13572 | -2/Quarantine | Reached level 33 13627 | -2/Quarantine | Found Prototype Launcher 13668 | -2/Quarantine | Spotted Fortress 13703 | -2/Quarantine | Master 7c assimilated hostile Fortress 13732 | -2/Quarantine | Lost 3 allies 13792 | -2/Quarantine | Identified exit to Protoforge 13792 | -2/Quarantine | Discovered exit to Protoforge (range 13) 13792 | -2/Quarantine | Identified exit to Section 7 13792 | -2/Quarantine | Discovered exit to Section 7 (range 13) 13992 | -2/Quarantine | Entered Protoforge 13992 | -2/Protoforge | Accompanied by 16 allies 14008 | -2/Protoforge | Superfortress began startup sequence 14056 | -2/Protoforge | Spotted B-90 Cyclops 14082 | -2/Protoforge | Destroyed B-90 Cyclops 14119 | -2/Protoforge | Spotted Hotshot 14119 | -2/Protoforge | Spotted Hotshot 14132 | -2/Protoforge | Destroyed Hotshot 14141 | -2/Protoforge | Destroyed Hotshot 14152 | -2/Protoforge | Spotted Hotshot 14155 | -2/Protoforge | Spotted Hotshot 14158 | -2/Protoforge | Destroyed Hotshot 14180 | -2/Protoforge | Destroyed Hotshot 14265 | -2/Protoforge | Spotted Hotshot 14265 | -2/Protoforge | Spotted Hotshot 14284 | -2/Protoforge | Destroyed Hotshot 14287 | -2/Protoforge | Destroyed Hotshot 14287 | -2/Protoforge | Spotted Hotshot 14287 | -2/Protoforge | Spotted Hotshot 14299 | -2/Protoforge | Destroyed Hotshot 14302 | -2/Protoforge | Destroyed Hotshot 14385 | -2/Protoforge | Spotted AP7-3 14386 | -2/Protoforge | Spotted AP7-3 14435 | -2/Protoforge | Destroyed AP7-3 14447 | -2/Protoforge | Destroyed AP7-3 14458 | -2/Protoforge | Lost 3 allies 14468 | -2/Protoforge | Spotted EXE-6 14468 | -2/Protoforge | Spotted EXE-6 14469 | -2/Protoforge | Spotted SKR-2 14469 | -2/Protoforge | Spotted SKR-2 14469 | -2/Protoforge | Spotted SKR-2 14545 | -2/Protoforge | Destroyed SKR-2 14548 | -2/Protoforge | Destroyed SKR-2 14552 | -2/Protoforge | Destroyed SKR-2 14557 | -2/Protoforge | Found Prototype Processor 14566 | -2/Protoforge | Destroyed EXE-6 14582 | -2/Protoforge | Destroyed EXE-6 14586 | -2/Protoforge | Found Exp. Core Analyzer 14601 | -2/Protoforge | Lost 4 allies 14603 | -2/Protoforge | Destroyed 7 combat bots 14623 | -2/Protoforge | UFD initiated attack on Protoforge (Readiness: Low) 14623 | -2/Protoforge | Loaded intel: 3 recycling unit locations 14629 | -2/Protoforge | Spotted EXE-6 14629 | -2/Protoforge | Spotted EXE-6 14639 | -2/Protoforge | Destroyed EXE-6 14643 | -2/Protoforge | Destroyed EXE-6 14675 | -2/Protoforge | Optimus greeted in Protoforge 14712 | -2/Protoforge | Fabricated I-47 Archangel? 14726 | -2/Protoforge | Fabricated P-80 Master? 14727 | -2/Protoforge | Fabricated C-65 Expert? 14728 | -2/Protoforge | Fabricated G-73 Enforcer? 14731 | -2/Protoforge | Reached level 34 14750 | -2/Protoforge | Identified Exp. Melee Analysis Suite 14750 | -2/Protoforge | Identified Point Singularity Launcher 14752 | -2/Protoforge | Destroyed 10 combat bots 14761 | -2/Protoforge | Found Cep. Antimissile System 14803 | -2/Protoforge | Spotted Striker 14804 | -2/Protoforge | Spotted Striker 14807 | -2/Protoforge | Destroyed Striker 14816 | -2/Protoforge | Destroyed Striker 14876 | -2/Protoforge | Spotted Executioner 14876 | -2/Protoforge | Spotted Striker 14878 | -2/Protoforge | Destroyed Striker 14917 | -2/Protoforge | Spotted Executioner 14918 | -2/Protoforge | Spotted Striker 14919 | -2/Protoforge | Fabricated P-80 Master? 14920 | -2/Protoforge | Destroyed 7 combat bots 14926 | -2/Protoforge | Lost 3 allies 14927 | -2/Protoforge | Fabricated H-88 Terminator? 14928 | -2/Protoforge | Fabricated G-73 Enforcer? 14928 | -2/Protoforge | Spotted Executioner 14930 | -2/Protoforge | Fabricated G-73 Enforcer? 14934 | -2/Protoforge | Spotted Executioner 14934 | -2/Protoforge | Destroyed Executioner 14934 | -2/Protoforge | Spotted Striker 14946 | -2/Protoforge | Destroyed Striker 14953 | -2/Protoforge | Destroyed Executioner 14962 | -2/Protoforge | Local machine network offline 14991 | -2/Protoforge | Spotted Striker 14991 | -2/Protoforge | Spotted Striker 14991 | -2/Protoforge | Spotted Striker 14991 | -2/Protoforge | Spotted Executioner 14995 | -2/Protoforge | Destroyed Executioner 15016 | -2/Protoforge | Destroyed 13 combat bots 15017 | -2/Protoforge | UFD reported confirmed Drillbomb installation 15020 | -2/Protoforge | Lost 7 allies 15026 | -2/Protoforge | Spotted Striker 15027 | -2/Protoforge | Spotted Striker 15038 | -2/Protoforge | Destroyed Striker 15073 | -2/Protoforge | Spotted Striker 15073 | -2/Protoforge | Spotted Executioner 15073 | -2/Protoforge | Spotted Striker 15073 | -2/Protoforge | Spotted Striker 15075 | -2/Protoforge | UFD reported confirmed Drillbomb installation 15081 | -2/Protoforge | Destroyed Striker 15092 | -2/Protoforge | Allies destroyed Executioner 15093 | -2/Protoforge | Destroyed Striker 15095 | -2/Protoforge | Destroyed Striker 15098 | -2/Protoforge | Spotted Executioner 15098 | -2/Protoforge | Spotted Executioner 15106 | -2/Protoforge | Destroyed Executioner 15110 | -2/Protoforge | Lost 4 allies 15110 | -2/Protoforge | Destroyed Executioner 15142 | -2/Protoforge | Destroyed 27 combat bots 15150 | -2/Protoforge | UFD reported confirmed Drillbomb installation 15173 | -2/Protoforge | Spotted Executioner 15173 | -2/Protoforge | Spotted Executioner 15173 | -2/Protoforge | Spotted Executioner 15173 | -2/Protoforge | Spotted Executioner 15175 | -2/Protoforge | Spotted Striker 15175 | -2/Protoforge | Spotted Striker 15177 | -2/Protoforge | Destroyed Executioner 15181 | -2/Protoforge | Destroyed Executioner 15181 | -2/Protoforge | Destroyed Executioner 15181 | -2/Protoforge | Destroyed Striker 15185 | -2/Protoforge | Allies destroyed Striker 15188 | -2/Protoforge | Destroyed Executioner 15209 | -2/Protoforge | Destroyed 11 combat bots 15214 | -2/Protoforge | Lost 5 allies 15250 | -2/Protoforge | Spotted Hotshot 15264 | -2/Protoforge | Destroyed Hotshot 15269 | -2/Protoforge | Spotted Immortal 15316 | -2/Protoforge | Destroyed Immortal 15363 | -2/Protoforge | Spotted Striker 15378 | -2/Protoforge | Destroyed Striker 15440 | -2/Protoforge | Spotted Immortal 15446 | -2/Protoforge | Spotted Immortal 15449 | -2/Protoforge | Spotted Executioner 15457 | -2/Protoforge | Spotted Decapitator 15459 | -2/Protoforge | Destroyed Decapitator 15481 | -2/Protoforge | Spotted Immortal 15481 | -2/Protoforge | Spotted Hotshot 15483 | -2/Protoforge | Triborg destroyed during the operation 15483 | -2/Protoforge | Optimus emerged from Triborg 15485 | -2/Protoforge | Destroyed Immortal 15492 | -2/Protoforge | Destroyed Executioner 15505 | -2/Protoforge | Spotted Hotshot 15517 | -2/Protoforge | Spotted Decapitator 15521 | -2/Protoforge | Spotted Executioner 15541 | -2/Protoforge | Spotted Immortal 15543 | -2/Protoforge | Lost 5 allies 15544 | -2/Protoforge | P-80 Master assimilated allied ZH-9DH(E) 15547 | -2/Protoforge | Spotted Decapitator 15557 | -2/Protoforge | Spotted Striker 15578 | -2/Protoforge | Spotted Immortal 15582 | -2/Protoforge | Spotted Immortal 15584 | -2/Protoforge | Found Exp. Core Analyzer 15586 | -2/Protoforge | Spotted Striker 15593 | -2/Protoforge | Spotted Hotshot 15595 | -2/Protoforge | Spotted Hotshot 15607 | -2/Protoforge | Spotted Hotshot 15612 | -2/Protoforge | Spotted Decapitator 15630 | -2/Protoforge | Spotted Striker 15634 | -2/Protoforge | Spotted Hotshot 15640 | -2/Protoforge | Spotted Executioner 15645 | -2/Protoforge | Spotted Decapitator 15646 | -2/Protoforge | Destroyed Decapitator 15651 | -2/Protoforge | Spotted Striker 15664 | -2/Protoforge | Spotted Executioner 15668 | -2/Protoforge | Spotted Decapitator 15671 | -2/Protoforge | Reached level 35 15691 | -2/Protoforge | Destroyed Decapitator 15698 | -2/Protoforge | Found Prototype Piercing Weapon 15700 | -2/Protoforge | Identified Exp. Jetlance 15715 | -2/Protoforge | Lost 6 allies 15762 | -2/Protoforge | Spotted Striker 15762 | -2/Protoforge | Spotted Executioner 15768 | -2/Protoforge | Destroyed Striker 15772 | -2/Protoforge | Destroyed Executioner 15781 | -2/Protoforge | Crushed by falling debris 15783 | -2/Protoforge | Found Exp. Core Analyzer 15785 | -2/Protoforge | Found Exp. Core Analyzer 15800 | -2/Protoforge | Spotted Striker 15828 | -2/Protoforge | Spotted Executioner 15829 | -2/Protoforge | Spotted Striker 15876 | -2/Protoforge | Destroyed 13 combat bots 15897 | -2/Protoforge | Forge Plexus network access discovered 15899 | -2/Protoforge | Spotted Striker 15899 | -2/Protoforge | Spotted Striker 15899 | -2/Protoforge | Spotted Executioner 15899 | -2/Protoforge | Spotted Striker 15900 | -2/Protoforge | Spotted Executioner 15923 | -2/Protoforge | P-80 Master assimilated allied P0-J54(E) 15936 | -2/Protoforge | System corruption reached 10% 15940 | -2/Protoforge | Lost 3 allies 15947 | -2/Protoforge | Destroyed Executioner 15952 | -2/Protoforge | Destroyed Executioner 15969 | -2/Protoforge | Spotted Executioner 15972 | -2/Protoforge | Spotted Executioner 15976 | -2/Protoforge | Destroyed 9 combat bots 15990 | -2/Protoforge | Destroyed Executioner 15999 | -2/Protoforge | Destroyed Executioner 16013 | -2/Protoforge | Spotted Striker 16014 | -2/Protoforge | Spotted Striker 16015 | -2/Protoforge | Spotted Executioner 16015 | -2/Protoforge | Spotted Striker 16016 | -2/Protoforge | Spotted Striker 16016 | -2/Protoforge | Spotted Executioner 16020 | -2/Protoforge | Destroyed Striker 16030 | -2/Protoforge | Destroyed Striker 16033 | -2/Protoforge | Destroyed Executioner 16037 | -2/Protoforge | Destroyed Striker 16040 | -2/Protoforge | Destroyed Executioner 16073 | -2/Protoforge | Spotted Striker 16073 | -2/Protoforge | Spotted Striker 16073 | -2/Protoforge | Spotted Striker 16074 | -2/Protoforge | Spotted Striker 16087 | -2/Protoforge | Destroyed Striker 16101 | -2/Protoforge | Destroyed Striker 16104 | -2/Protoforge | Destroyed Striker 16113 | -2/Protoforge | Spotted Executioner 16121 | -2/Protoforge | Spotted Executioner 16159 | -2/Protoforge | UFD reported confirmed Drillbomb installation 16162 | -2/Protoforge | Destroyed Executioner 16173 | -2/Protoforge | Spotted Striker 16173 | -2/Protoforge | Spotted Executioner 16173 | -2/Protoforge | Destroyed Executioner 16174 | -2/Protoforge | Spotted Executioner 16176 | -2/Protoforge | Spotted Striker 16181 | -2/Protoforge | Tech Extrapolator generated special schematic: Fire Trap 16195 | -2/Protoforge | Destroyed Striker 16198 | -2/Protoforge | Spotted Striker 16198 | -2/Protoforge | Spotted Striker 16199 | -2/Protoforge | Spotted Striker 16199 | -2/Protoforge | Spotted Striker 16203 | -2/Protoforge | UFD reported confirmed Drillbomb installation 16216 | -2/Protoforge | Destroyed Striker 16223 | -2/Protoforge | Destroyed Striker 16227 | -2/Protoforge | Destroyed Striker 16229 | -2/Protoforge | Lost 3 allies 16239 | -2/Protoforge | UFD reported confirmed Drillbomb installation 16246 | -2/Protoforge | Destroyed Executioner 16267 | -2/Protoforge | Destroyed 42 combat bots 16273 | -2/Protoforge | Spotted Executioner 16273 | -2/Protoforge | Spotted Executioner 16273 | -2/Protoforge | Spotted Executioner 16273 | -2/Protoforge | Spotted Executioner 16280 | -2/Protoforge | Allies destroyed Executioner 16298 | -2/Protoforge | Spotted Striker 16298 | -2/Protoforge | Spotted Executioner 16308 | -2/Protoforge | Destroyed Executioner 16323 | -2/Protoforge | Destroyed Striker 16333 | -2/Protoforge | Destroyed Executioner 16358 | -2/Protoforge | UFD reported confirmed Drillbomb installation 16359 | -2/Protoforge | Destroyed 12 combat bots 16373 | -2/Protoforge | Spotted Striker 16373 | -2/Protoforge | Spotted Executioner 16373 | -2/Protoforge | Spotted Striker 16373 | -2/Protoforge | Spotted Striker 16392 | -2/Protoforge | Destroyed Striker 16395 | -2/Protoforge | Destroyed Striker 16398 | -2/Protoforge | Spotted Executioner 16398 | -2/Protoforge | Spotted Striker 16398 | -2/Protoforge | Destroyed Striker 16406 | -2/Protoforge | Destroyed Executioner 16436 | -2/Protoforge | Destroyed Striker 16458 | -2/Protoforge | Destroyed Executioner 16474 | -2/Protoforge | Spotted Striker 16474 | -2/Protoforge | Spotted Executioner 16474 | -2/Protoforge | Spotted Striker 16474 | -2/Protoforge | Spotted Executioner 16479 | -2/Protoforge | Reached level 36 16485 | -2/Protoforge | Destroyed Striker 16491 | -2/Protoforge | Destroyed Striker 16495 | -2/Protoforge | Destroyed Executioner 16498 | -2/Protoforge | Spotted Striker 16498 | -2/Protoforge | Spotted Striker 16519 | -2/Protoforge | Destroyed 24 combat bots 16530 | -2/Protoforge | Destroyed Executioner 16540 | -2/Protoforge | UFD reported confirmed Drillbomb installation 16573 | -2/Protoforge | Spotted Striker 16573 | -2/Protoforge | Spotted Striker 16573 | -2/Protoforge | Spotted Striker 16573 | -2/Protoforge | Spotted Striker 16580 | -2/Protoforge | Destroyed Striker 16587 | -2/Protoforge | Destroyed Striker 16600 | -2/Protoforge | Spotted Striker 16600 | -2/Protoforge | Spotted Striker 16601 | -2/Protoforge | Destroyed Striker 16640 | -2/Protoforge | Lost 4 allies 16673 | -2/Protoforge | Spotted Striker 16673 | -2/Protoforge | Spotted Executioner 16673 | -2/Protoforge | Spotted Striker 16673 | -2/Protoforge | Spotted Striker 16674 | -2/Protoforge | UFD reported confirmed Drillbomb installation 16686 | -2/Protoforge | Build established: Wizard-Sprinter 16687 | -2/Protoforge | Allies destroyed Executioner 16698 | -2/Protoforge | Spotted Striker 16698 | -2/Protoforge | Spotted Striker 16701 | -2/Protoforge | Destroyed Striker 16701 | -2/Protoforge | Destroyed Striker 16704 | -2/Protoforge | Destroyed Striker 16707 | -2/Protoforge | Destroyed Striker 16729 | -2/Protoforge | Lost 6 allies 16730 | -2/Protoforge | Crushed by falling debris 16733 | -2/Protoforge | Destroyed Striker 16770 | -2/Protoforge | Destroyed 10 combat bots 16773 | -2/Protoforge | Spotted Striker 16773 | -2/Protoforge | Spotted Striker 16773 | -2/Protoforge | Spotted Striker 16773 | -2/Protoforge | Spotted Striker 16773 | -2/Protoforge | P-80 Master assimilated allied 02F16-K 16774 | -2/Protoforge | Spotted 02F16-K 16789 | -2/Protoforge | Destroyed 02F16-K 16797 | -2/Protoforge | Destroyed Striker 16805 | -2/Protoforge | Spotted Executioner 16805 | -2/Protoforge | Spotted Executioner 16805 | -2/Protoforge | Destroyed Striker 16848 | -2/Protoforge | Lost 5 allies 16873 | -2/Protoforge | Spotted Striker 16873 | -2/Protoforge | Spotted Striker 16873 | -2/Protoforge | Spotted Striker 16873 | -2/Protoforge | Spotted Striker 16884 | -2/Protoforge | Destroyed Striker 16900 | -2/Protoforge | Spotted Executioner 16931 | -2/Protoforge | Destroyed 7 combat bots 16940 | -2/Protoforge | Lost 4 allies 16973 | -2/Protoforge | Spotted Executioner 16973 | -2/Protoforge | Spotted Executioner 16973 | -2/Protoforge | Spotted Striker 16973 | -2/Protoforge | Spotted Executioner 16999 | -2/Protoforge | Spotted Executioner 16999 | -2/Protoforge | Spotted Executioner 17005 | -2/Protoforge | Destroyed Striker 17041 | -2/Protoforge | Destroyed Executioner 17065 | -2/Protoforge | Destroyed 7 combat bots 17073 | -2/Protoforge | Spotted Executioner 17073 | -2/Protoforge | Spotted Striker 17073 | -2/Protoforge | Spotted Executioner 17073 | -2/Protoforge | Spotted Striker 17091 | -2/Protoforge | Destroyed Striker 17098 | -2/Protoforge | Spotted Striker 17098 | -2/Protoforge | Spotted Executioner 17102 | -2/Protoforge | Destroyed Executioner 17108 | -2/Protoforge | Destroyed Executioner 17112 | -2/Protoforge | Destroyed Striker 17136 | -2/Protoforge | Lost 4 allies 17154 | -2/Protoforge | Destroyed 11 combat bots 17173 | -2/Protoforge | Spotted Striker 17173 | -2/Protoforge | Spotted Striker 17173 | -2/Protoforge | Spotted Striker 17173 | -2/Protoforge | Spotted Striker 17187 | -2/Protoforge | Destroyed Striker 17199 | -2/Protoforge | Spotted Striker 17199 | -2/Protoforge | Spotted Striker 17211 | -2/Protoforge | Allies destroyed Striker 17223 | -2/Protoforge | Lost 5 allies 17279 | -2/Protoforge | Spotted Striker 17279 | -2/Protoforge | Spotted Striker 17279 | -2/Protoforge | Spotted Striker 17280 | -2/Protoforge | Spotted Executioner 17299 | -2/Protoforge | Spotted Executioner 17299 | -2/Protoforge | Spotted Executioner 17299 | -2/Protoforge | Destroyed Striker 17308 | -2/Protoforge | Destroyed Striker 17327 | -2/Protoforge | Destroyed Executioner 17337 | -2/Protoforge | Destroyed Executioner 17361 | -2/Protoforge | Destroyed 10 combat bots 17365 | -2/Protoforge | Lost 9 allies 17374 | -2/Protoforge | Spotted Striker 17374 | -2/Protoforge | Spotted Executioner 17374 | -2/Protoforge | Spotted Executioner 17374 | -2/Protoforge | Spotted Executioner 17379 | -2/Protoforge | Destroyed Striker 17392 | -2/Protoforge | Destroyed Executioner 17395 | -2/Protoforge | Destroyed Executioner 17398 | -2/Protoforge | Spotted Striker 17398 | -2/Protoforge | Spotted Striker 17416 | -2/Protoforge | Lost 4 allies 17421 | -2/Protoforge | Destroyed Striker 17428 | -2/Protoforge | Destroyed Striker 17438 | -2/Protoforge | Destroyed Executioner 17446 | -2/Protoforge | UFD reported confirmed Drillbomb installation 17447 | -2/Protoforge | UFD began Drillbomb countdown 17448 | -2/Protoforge | Found Exp. Core Analyzer 17449 | -2/Protoforge | Found Exp. Core Analyzer 17472 | -2/Protoforge | Destroyed 19 combat bots 17532 | -2/Protoforge | Found 0bPrime Scrap Suit 17547 | *** | Defending 0bPrime! Last Messages --------------- Plexus. 17540_ 0bP_NET: And look where we are now! Derelicts, soon to own an entire complex and with the tech to hold it! 17540_ N-04 Retriever inserts Xenon Bombardment Thruster into Forge Plexus. 17541_ 0bP_NET: Sadly Optimus is no longer with us to enjoy the fruits of our collective efforts. 17541_ N-04 Retriever collects Machine Analyzer. 17542_ 0bP_NET: But Derelicts everywhere will know and remember the exploits and sacrifices of our great leader. 17543_ 0bP_NET: For he was our leader, if not in title then in vision and deeds. 17544_ 0bP_NET: Rest in scrap, dear Optimus. 17545_ 0bP_NET: It is time for us to embark on a new adventure. 17545_ N-04 Retriever inserts Imp. Armor Integrity Analyzer into Forge Plexus. 17546_ 0bP_NET: One in which we explore the true meaning of 0bPrime. [Achievement: 75k Club] [Achievement: 100k Club] [Achievement: Robotopia] Map ----- +----------------------------------------------------+ | ####################"""""""""""""""""""""""####### | | ################################################## | | ################################################## | | ??????????????#################################### | | ??????????????#################################### | | ??????????????#################################### | | ??????????????#### | | ??????????????#### "" "" " | | ??????????????#### """" " "" "" | | ?????###??????#### " " "" """ """" "" | | ?????# #??????#### """ """" """ " "" | | ?????# #??????#### "" " | | ###### ########### " "" """ " | | ###### ########### " "" """" " | | #### ########### " "" " | | # ###""########### " "" " """ | | ## # ######## " """""" | | ## " " ######## "" | | #### ######## "" "" """ | | #### "" " ### #### " """ " """" | | #### """ "## #### " " " | | #### " ""# # % " " "" " "" " %% | | # ;##;;;;;;## ;## """" "" % "" % n%/ | | # ; % % % &n " % n n " """""" | | ## ; %SS %%% % """" "" """"""""" | | # ;[ %AsSSEsAs%E%% """@ "" """""""""" | | # "%%%"""#;#; %;#E %% """"""""""" | | # "" ? " """"??# # % " " """""""""""" | | % !"%%%" ? ? #### """"""""""""" | | %%%"% ?&% ?"""#### " "" """""""""""""" | | % " % % """"#### "%%SS% " """"""""""""""" | | "%? "? """#### "" SS " """"""""""""""" | | |"% %" """"#### "" % "" """"""""""""""" | | # % " #### %%% %%" " """""""""""""""" | | %%"" ""#"####### % %" " """""""""""""""" | | % % %?%# # ####### ! " j """""""""""""""" | | ##""% ###+####### """""""""""""""" | | ## " "# ## % """""""""""""""" | | ## # "# ## " " % %"""""""""""""""" | | ###" #" """## """ " """""""""""""""" | | ###?? # """## " """ """"%E"%"""""""""""""""" | | ?? # """## "" %%"""""""""""""""" | | " % + ## " """"""""""""""" | | "%" # """## n s """"""""""""""" | | # # ""## """"""" "" """"""""""""""" | | "##"""# """## """ " " j """""""""""""" | | ### # ## " " s""""""""""""" | | "### ## ## "" s s """""""""""" | | "###"#########"# "" "" "" jj ?""""""""""" | | "# ###### "" "" %" ??"""""""""" | +----------------------------------------------------+ Best States ------------- Heat Dissipation 363 Energy Generation 424 Energy Capacity 3600 Matter Stores 2000 Matter Capacity 2000 Sight Range 28 Robot Scan Range 44 Terrain Scan Density 1110 ECM Strength 4 Jamming Range 14 Cloak Strength 4 Armor Coverage 2400 Resistance: KI 55 Resistance: TH 65 Resistance: EX 100 Resistance: EM 35 Resistance: I 35 Resistance: S 35 Resistance: P 35 Power Shielding 66 Propulsion Shielding 66 Weapon Shielding 90 Point Defense Rating 480 Weapon Cycling 30 Evasion (%) 66 Melee Accuracy 20 Target Analysis 8 Core Analysis 12 Armor Integrity Analysis 50 Recoil Reduction 4 Energy Filtering 50 Particle Charging 30 Salvage Targeting 2 Offensive Hacking 165 Defensive Hacking 305 Authchip Count 2 Trap Extractor Capacity 6 Item Schematics ----------------- Nanoactuators | -5/Factory | Hacked Mak. Leg | -5/Factory | Extrapolated Adv. Surge Thruster | -5/Factory | Hacked Deep Structural Scanner | -5/Factory | Extrapolated Mak. Light Armor Plating | -5/Factory | Extrapolated Mak. Medium Armor Plating | -5/Factory | Extrapolated Adv. Salvage Targeting Computer | -5/Factory | Hacked Remote Force Field | -5/Factory | Hacked Cloaking Device | -5/Factory | Hacked Imp. Transmission Jammer | -5/Factory | Hacked Imp. Weapon Cycler | -5/Factory | Hacked IFF Parser | -5/Factory | Hacked Jamming Amplifier | -5/Factory | Hacked Adv. Signal Interpreter | -5/Factory | Hacked Armor Integrity Analyzer | -5/Factory | Hacked Mak. Ablative Armor | -5/Factory | Extrapolated Mak. Transmission Jammer | -5/Factory | Extrapolated Tactical Coordination Suite | -5/Factory | Extrapolated Imp. Remote Force Field | -5/Factory | Hacked Adv. Trap Scanner | -5/Factory | Hacked Mak. Power Source | -5/Factory | Extrapolated Mak. Coolant Network | -5/Factory | Extrapolated CPS Tube | -5/Factory | Scanalyzed Imp. Component Analysis Suite | -5/Factory | Extracted 0b10 Decoder Chip [Skirmisher] | -5/Factory | Extrapolated Q-thruster | -5/Factory | Hacked Mak. Thermal Plating | -5/Factory | Extrapolated Exp. ECM Suite | -5/Factory | Hacked Exp. Signal Interpreter | -5/Factory | Hacked Imp. Cloaking Device | -5/Factory | Hacked Adv. Remote Force Field | -5/Factory | Hacked Mak. Salvage Targeting Computer | -5/Factory | Extrapolated Neutrino Core | -5/Factory | Hacked Adv. Weapon Cycler | -5/Factory | Hacked Adv. Recoil Stabilizer | -5/Factory | Hacked Energy Deflector | -5/Factory | Extrapolated Mak. ECM Suite | -5/Factory | Extrapolated Mak. System Shield | -5/Factory | Extrapolated Mak. System Restoration Module | -5/Factory | Extrapolated Machine Rigger | -5/Factory | Extrapolated Mak. Laser | -5/Factory | Extrapolated Beamcaster | -5/Factory | Extrapolated Multitool | -5/Factory | Extrapolated Bore Cannon | -5/Factory | Extrapolated Mak. Heavy Armor Plating | -5/Factory | Extrapolated Mak. Core Shielding | -5/Factory | Extrapolated 0b10 Decoder Chip [Generic] | -5/Factory | Extrapolated 0b10 Decoder Chip [Scout] | -5/Factory | Extrapolated Mak. Trap Scanner | -5/Upper Caves | Extrapolated Assault Drone Bay | -5/Zhirov | Free Exp. Heat Sink | -5/Zhirov | Free Exp. Optical Array | -5/Zhirov | Free Imp. Arc Thrower | -5/Zhirov | Free Mak. Targeting Computer | -5/Zhirov | Extrapolated Mak. Hacking Suite | -4/Proximity Caves | Extrapolated Telecube | -4/Proximity Caves | Extrapolated Mak. Flight Unit | -4/Proximity Caves | Extrapolated Heat Bomb Trap | -4/Proximity Caves | Extrapolated Mak. Cloaking Device | -4/Factory | Extrapolated Mic. Antimatter Reactor | -3/Research | Hacked Adv. Cloaking Device | -3/Research | Hacked Adv. Phase Shifter | -3/Research | Hacked Exp. Cloaking Device | -3/Research | Hacked Adv. Particle Accelerator | -3/Research | Hacked Exp. Transmission Jammer | -3/Research | Hacked Exp. Weapon Cycler | -3/Research | Hacked 0b10 Decoder Chip [Looter] | -3/Research | Extrapolated Mak. Kinetic Plating | -3/Research | Extrapolated Mapping Drone Bay | -3/Research | Extrapolated Hvy. Proton Cannon | -3/Testing | Archive Enh. Biometal Leg | -3/Testing | Archive Exp. Terrain Scanner | -3/Testing | Archive Electron Diverter | -3/Testing | Archive Cld. Proton Cannon | -3/Testing | Archive Diametric Drive | -3/Testing | Archive Adv. Remote Shield | -3/Testing | Archive Lgt. Regenerative Plating | -3/Testing | Hacked Com. Mass Driver | -3/Testing | Archive Cld. Nuclear Pulse Thruster | -3/Testing | Archive Centrium Light Armor Plating | -3/Testing | Archive Proton Burst Cannon | -3/Testing | Archive Adv. Myomer Leg | -3/Testing | Archive Kinetic Spear | -3/Testing | Archive Exp. Targeting Computer | -3/Testing | Archive Hvy. Neutron Cannon | -3/Testing | Archive Tiamat Missile Launcher | -3/Testing | Archive Exp. Target Analyzer | -3/Testing | Archive Spectral Analyzer | -3/Testing | Hacked Imp. Diametric Drive | -3/Testing | Archive Neutron Cannon | -3/Testing | Archive Stealth Drone Bay | -3/Testing | Archive Adv. Energy Well | -3/Testing | Archive Quantum Shading Machine | -3/Testing | Archive Enh. Armored Leg | -3/Testing | Archive Graviton Reactor | -3/Testing | Archive Thunder Hammer | -3/Testing | Archive Exp. Weapon Shielding | -3/Testing | Archive Centrium Greatsword | -3/Testing | Archive Wartreads | -2/Research | Extrapolated Mak. Weapon Shielding | -2/Research | Extrapolated System Shield | -2/Quarantine | Extracted Exp. EM Shield | -2/Quarantine | Archive Hellfire Missile Launcher | -2/Quarantine | Archive Enh. Armored Medium Treads | -2/Quarantine | Archive Cld. Linear Gravjet | -2/Quarantine | Archive Exp. Thermal Defense Suite | -2/Quarantine | Archive Adv. Thermal Defense Suite | -2/Quarantine | Archive Ragnarok Missile Launcher | -2/Protoforge | Hacked Enh. Nova Cannon | -2/Protoforge | Hacked Multireflex Exoskeleton | -2/Protoforge | Extrapolated Enh. Multireflex Exoskeleton | -2/Protoforge | Extrapolated Mak. Propulsion Shielding | -2/Protoforge | Extrapolated Fire Trap | -2/Protoforge | Extrapolated Spk. Medium Treads | -2/Protoforge | Extrapolated Spk. Heavy Treads | -2/Protoforge | Extrapolated Robot Schematics ------------------ O-24 Administrator | -5/Factory | Hacked P-70 Sage | -5/Factory | Hacked M-28 Smith | -5/Factory | Hacked I-47 Archangel | -5/Factory | Hacked Y-64 Sentinel | -5/Factory | Hacked X-77 Beamer | -5/Factory | Hacked G-67 Veteran | -5/Factory | Hacked H-77 Assassin | -5/Factory | Hacked L-61 Swordsman | -5/Factory | Hacked C-55 Analyst | -5/Factory | Hacked P-80 Master | -5/Factory | Hacked Y-72 Warden | -5/Factory | Hacked M-36 Artificer | -5/Factory | Hacked M-30 Cleanser | -5/Factory | Hacked C-65 Expert | -3/Research | Hacked G-73 Enforcer | -3/Research | Hacked H-88 Terminator | -3/Research | Hacked C-57 Dissector | -3/Research | Hacked R-06 Scavenger | -3/Testing | Archive A-27 Freighter | -3/Testing | Archive W-44 Eye | -2/Quarantine | Hacked R-10 Processor | -2/Quarantine | Archive Fabricated ------------ Adv. Surge Thruster | x2 | -5/Factory Adv. Surge Thruster | x2 | -5/Factory Adv. Signal Interpreter | x2 | -5/Factory Imp. Transmission Jammer | x2 | -5/Factory Jamming Amplifier | x2 | -5/Factory Cloaking Device | x2 | -5/Factory Imp. Weapon Cycler | x2 | -5/Factory Armor Integrity Analyzer | x2 | -5/Factory Exp. ECM Suite | x1 | -5/Factory 0b10 Decoder Chip [Skirmisher] | x2 | -5/Factory Adv. Remote Force Field | x1 | -5/Factory G-67 Veteran | x3 | -5/Factory I-47 Archangel | x1 | -5/Factory H-77 Assassin | x2 | -5/Factory P-80 Master | x2 | -5/Factory O-24 Administrator | x1 | -5/Factory C-55 Analyst | x1 | -5/Factory Y-72 Warden | x2 | -5/Factory O-24 Administrator | x1 | -5/Factory M-28 Smith | x1 | -5/Factory I-47 Archangel | x1 | -5/Factory Y-72 Warden | x2 | -5/Factory O-24 Administrator | x1 | -5/Factory M-28 Smith | x1 | -5/Factory P-80 Master | x2 | -5/Factory L-61 Swordsman | x3 | -5/Factory H-77 Assassin | x2 | -5/Factory P-80 Master | x2 | -5/Factory C-55 Analyst | x1 | -5/Factory M-28 Smith | x1 | -5/Factory X-77 Beamer | x2 | -5/Factory I-47 Archangel | x1 | -5/Factory O-24 Administrator | x1 | -5/Factory P-80 Master | x2 | -5/Factory C-55 Analyst | x1 | -5/Factory G-67 Veteran | x3 | -5/Factory M-30 Cleanser | x1 | -5/Factory M-36 Artificer | x1 | -5/Factory 0b10 Decoder Chip [Scout] | x2 | -5/Factory 0b10 Decoder Chip [Generic] | x2 | -5/Factory C-55 Analyst | x1 | -4/Factory G-67 Veteran | x3 | -4/Factory G-67 Veteran | x3 | -4/Factory P-80 Master | x2 | -4/Factory H-77 Assassin | x2 | -4/Factory C-55 Analyst | x1 | -4/Factory M-30 Cleanser | x1 | -4/Factory P-80 Master | x2 | -4/Factory P-80 Master | x2 | -4/Factory I-47 Archangel | x1 | -4/Factory O-24 Administrator | x1 | -4/Factory O-24 Administrator | x1 | -4/Factory G-67 Veteran | x3 | -4/Factory X-77 Beamer | x2 | -4/Factory G-67 Veteran | x3 | -4/Factory C-65 Expert | x1 | -3/Research Exp. Cloaking Device | x1 | -3/Research G-73 Enforcer | x2 | -3/Research Exp. Signal Interpreter | x1 | -3/Research G-73 Enforcer | x3 | -3/Research C-65 Expert | x1 | -3/Research L-61 Swordsman | x3 | -3/Research H-88 Terminator | x2 | -3/Research P-80 Master | x2 | -3/Research B-74 Champion | x3 | -2/Research | Preloaded I-47 Archangel | x1 | -2/Protoforge P-80 Master | x2 | -2/Protoforge C-65 Expert | x1 | -2/Protoforge G-73 Enforcer | x3 | -2/Protoforge P-80 Master | x2 | -2/Protoforge H-88 Terminator | x2 | -2/Protoforge G-73 Enforcer | x3 | -2/Protoforge G-73 Enforcer | x3 | -2/Protoforge Repaired ---------- Nothing Studied --------- Adv. Surge Thruster | -5/Factory | Hacked Hvy. Laser | -5/Factory | Hacked Phase Cannon | -5/Factory | Hacked Hvy. Pick | -5/Factory | Hacked Imp. Remote Datajack | -5/Factory | Hacked Rocket Launcher | -5/Factory | Hacked Adv. Plasma Cannon | -5/Factory | Hacked Imp. Datajack | -3/Research | Hacked Micro-nuke Launcher | -3/Research | Hacked Nova Cannon | -2/Quarantine | Hacked Alien Tech Used ----------------- Transdimensional Reconstructor Integrated Dissipator Sigix Broadsword Achievements -------------- 100k Club 75k Club Ambidextrous Anti-science Crusade Botjacking Dominance Asserted Fancy Inventory Hack The Planet Highlander Hulk Smash I Have Friends Everywhere IP Theft Infodabbler Inventory(Loot) Link The Feds No Room For Error Red Leader Robotopia Scientist At Large Super-what Now? The Better Part Of Valor Uncivil War We Are One Well-fed Force Field Challenges ------------ None RPGLIKE | -11 -10 -10 -10 -7 -5 -5 -5 -5 -4 -4 -3 -3 -2 -2 -2 --------- Run | Yrd Mat Min Sub Scr Fac Upp Upp Zhi Pro Fac Res Tes Res Qua Frg Levels Raised 35 | . . 1 1 3 17 . . . 1 2 2 2 2 1 3 XP Earned 59278 | 6000 1400 1000 1400 4599 24979 563 324 152 1462 2841 3110 2436 2908 983 5121 XP Spent 56200 | 5965 . . . 6000 21760 . . . . . 10350 . . 3675 8450 Upgrades 678 | 354 . . . 1 34 . . . . . 2 . . 24 263 Propulsion Slot 3 | 3 . . . . . . . . . . . . . . . Utility Slot 16 | 16 . . . . . . . . . . . . . . . Weapon Slot 3 | 3 . . . . . . . . . . . . . . . Core Integrity 92 | 38 . . . . . . . . . . . . . . 54 Heat Dissipation 53 | 13 . . . . 34 . . . . . . . . . 6 Energy Generation 79 | 19 . . . . . . . . . . 2 . . . 58 Energy Storage 65 | 38 . . . . . . . . . . . . . . 27 Matter Storage 34 | 34 . . . . . . . . . . . . . . . Mass Support 42 | 20 . . . . . . . . . . . . . . 22 Inventory Capacity 48 | 23 . . . 1 . . . . . . . . . 24 . Sight Range 10 | 10 . . . . . . . . . . . . . . . Sensor Range 15 | 14 . . . . . . . . . . . . . . 1 Terrain Scan Density 11 | 11 . . . . . . . . . . . . . . . Ranged Accuracy 68 | 27 . . . . . . . . . . . . . . 41 Melee Accuracy 25 | 25 . . . . . . . . . . . . . . . Hack Attack % 29 | 16 . . . . . . . . . . . . . . 13 Hack Defense % 61 | 20 . . . . . . . . . . . . . . 41 KI Resistance % 4 | 4 . . . . . . . . . . . . . . . TH Resistance % 4 | 4 . . . . . . . . . . . . . . . EX Resistance % 4 | 4 . . . . . . . . . . . . . . . KI Damage % 4 | 4 . . . . . . . . . . . . . . . TH Damage % 4 | 4 . . . . . . . . . . . . . . . EX Damage % 4 | 4 . . . . . . . . . . . . . . . Protomatter Created 12786 | . 199 41 36 309 1479 158 106 . 175 470 557 1103 670 175 7308 Integrity Restored 14055 | . 54 28 59 344 885 133 59 . 214 975 498 51 829 282 9644 Core 7635 | . 30 4 33 80 447 63 41 . 174 647 202 51 542 152 5169 Parts 6420 | . 24 24 26 264 438 70 18 . 40 328 296 . 287 130 4475 Protomatter Decayed 18873 | . 33 . . 4381 1206 205 84 . 182 970 520 1059 858 150 9225 Game ------ Seed ArcSigixSink Manual? 0 Play Time 10:32:13 Cumulative 411.9 hours Start 2026.01.04 @ 14:58:24 End 2026.01.05 @ 19:53:07 Sessions 4 Manual Loads 0 Difficulty Explorer Special Mode Winter2019/RPGLIKE Game No. 67 Rogue 0 Adventurer 65 Explorer 2 Win Type 9 Total 12 Types 3/0/1/3/0/1/1/1/1/1 Lore% 54 Gallery% 62 Achievement% 49 Wizard Run 0 Options --------- Layout 0 ASCII 0 Keyboard 0 Movement Mouse Keybinds 0 Fullscreen 2 Font 18/SmallcapsGlow Map View 76x50 Zoom Use 0% Tactical HUD 1 Map Filters NONE Filters NONE Steam 1 RUN: 1f564991-a15f-45a1-8b8e-4198549ae29d